{"text_format":"1","workbook":"xlsx","n_sheets":22,"sheets":["Dane Wnioskodawcy","Lokalizacja projektu","Rachunek bankowy","Zaliczki","Podatek VAT","Rozpoczęcie projektu","Zasady horyzontalne","Środowisko","Specyfikacja kosztów","Koszty pośrednie","Usługi IOB dla MŚP","Pomocniczy","Wpływ projektu","Spójna komunikacja","Doświadczenie","Kumulacja pomocy","Tajemnica przedsiębiorstwa","Oświadczenia","słownik_wysoka techniki","słownik RIS","Słownik","Arkusz1"],"not_rendered":{"charts":0,"images":5,"macros":1,"external_links":1,"defined_names":37,"comments":2,"pivot_tables":0},"unopened":[],"bounds":{"document_bytes":16777216,"sheet_cells":100000,"rows_first":2000,"rows_last":500,"rows_between":2000,"halvings":0,"cell_chars":16384,"cell_head_chars":4096},"cells_cut":0,"cells_raw":0,"read":"whole","date_system":"1900"}

{"sheet":"Dane Wnioskodawcy","index":0,"n_rows":24,"n_cols":2,"rows_kept":24,"cut":false,"hidden":false,"merged":[]}
["Opis pola","Dane do wypełnienia"]
["Nazwa Wnioskodawcy"]
["NIP"]
["Numer naboru","FELU.02.05-IP.01-001/26"]
["Nazwa działania","USŁUGI DLA MŚP"]
["Data sporządzenia dokumentu"]
["Lp.","Niniejszy dokument składa się z następujących zakładek (kliknij aby przejść do zakładki):"]
["1.","Lokalizacja projektu"]
["2.","Rachunek bankowy"]
["3.","Zaliczki"]
["4.","Podatek VAT"]
["5.","Rozpoczęcie projektu"]
["6.","Zasady horyzontalne"]
["7.","Środowisko"]
["8.","Specyfikacja kosztów"]
["9.","Koszty pośrednie"]
["10.","Usługi IOB dla MŚP"]
["11.","Wpływ projektu"]
["12.","Spójna komunikacja"]
["13.","Doświadczenie"]
["14.","Kumulacja pomocy"]
["15.","Tajemnica przedsiębiorstwa"]
["16.","Oświadczenia"]
[null,"Klauzula informacyjna Lubelskiej Agencji Wspierania Przedsiębiorczości w Lublinie (LAWP):\nZgodnie z art. 47 ust. 1 pkt 2) ustawy z dnia 28 kwietnia 2022 r. o zasadach realizacji zadań finansowanych ze środków europejskich  w perspektywie finansowej 2021–2027 (ustawa wdrożeniowa) LAWP informuje, iż może wymagać od wnioskodawców oświadczeń na potwierdzenie faktów lub stanu prawnego, niezbędnych do oceny projektu lub objęcia go dofinansowaniem.\nPonadto, zgodnie z art. 47 ust. 2 ustawy wdrożeniowej, oświadczenia o których mowa powyżej, są składane pod rygorem odpowiedzialności karnej za składanie fałszywych oświadczeń."]

{"sheet":"Lokalizacja projektu","index":1,"n_rows":7,"n_cols":11,"rows_kept":7,"cut":false,"hidden":false,"merged":[[0,0,0,10]]}
["Miejsce realizacji projektu\nW tabeli poniżej należy wskazać miejsca, gdzie będzie realizowany projekt. W przypadku gdy projekt posiada wiele lokalizacji, należy wskazać wszystkie miejsca lokalizacji projektu. Przez pojęcie lokalizacji projektu należy rozumieć miejsce lub miejsca na obszarze województwa lubelskiego, bezpośrednio związane z jego realizacją."]
["Lp.","Województwo","Powiat","Gmina","Miejscowość","Kod pocztowy","Ulica","Numer budynku","Numer lokalu ","Numer księgi wieczystej nieruchomości, na której zlokalizowany jest projekt","Numer działki"]
[null,"W polu poniżej należy podać nazwę województwa w którym będzie zlokalizowany projekt","W polu poniżej należy wskazać powiat","W polu poniżej należy wskazać gminę","W polu poniżej należy wskazać miejscowość","W polu poniżej należy wskazać kod pocztowy miejscowości ","W polu poniżej należy wskazać ulicę","W polu poniżej należy wskazać numer budynku","W polu poniżej należy wskazać numer lokalu","W polu poniżej należy podać numer księgi wieczystej w następującym formacie XXXX/XXXXXXXX/X. Jeżeli jedna nieruchomość będąca lokalizacją projektu objęta jest więcej niż jedną księgą wieczystą należy wymienić wszystkie numery ksiąg dotyczące realizowanej inwestycji, czytelnie oddzielając je od siebie.","W polu poniżej należy podać numer działki, na której zlokalizowana jest nieruchomość lub na której będzie realizowana inwestycja, jeżeli działka jest niezabudowana. Jeżeli jedna nieruchomość będąca lokalizacją znajduje się na kilku działkach lub inwestycja jest realizowana na kilku działkach niezabudowanych należy wymienić wszystkie numery działek, czytelnie oddzielając je od siebie."]
[1,"Lubelskie"]
[2,"Lubelskie"]
[3,"Lubelskie"]
[4,"Lubelskie"]

{"sheet":"Rachunek bankowy","index":2,"n_rows":2,"n_cols":1,"rows_kept":2,"cut":false,"hidden":false,"merged":[]}
["Rachunek bankowy"]
["W wierszu poniżej należy wskazać numer rachunku bankowego, na który LAWP będzie przekazywać płatności w formie refundacji. Jeżeli na dzień składania wniosku, wnioskodawca nie dysponuje wyodrębnionym rachunkiem bankowym, wówczas istnieje możliwość wskazania numeru rachunku bankowego przed podpisaniem umowy o dofinansowanie (w takim przypadku należy pole poniżej pozostawić puste)"]

{"sheet":"Zaliczki","index":3,"n_rows":4,"n_cols":1,"rows_kept":4,"cut":false,"hidden":false,"merged":[]}
["Deklaracja korzystania z płatności zaliczkowych"]
["W wierszu poniżej należy wskazać czy wnioskodawca zamierza finansować realizację projektu w formie zaliczki, wybierając TAK/NIE"]
[]
["Jeżeli wnioskodawca zamierza finansować projekt w formie zaliczki, należy wskazać w wierszu poniżej wyodrębniony numer rachunku bankowego. Jeżeli na dzień składania wniosku, wnioskodawca nie dysponuje wyodrębnionym rachunkiem bankowym do celów zaliczkowych, wówczas istnieje możliwość wskazania numeru rachunku bankowego przed podpisaniem umowy o dofinansowaniem (w takim przypadku należy pole poniżej pozostawić puste)."]

{"sheet":"Podatek VAT","index":4,"n_rows":4,"n_cols":1,"rows_kept":4,"cut":false,"hidden":false,"merged":[]}
["Kwalifikowalność podatku VAT"]
["W poniższym polu należy wskazać, czy wnioskodawca ma możliwość odzyskania VAT. Jeżeli wnioskodawca ma zgodnie z obowiązującymi przepisami prawa możliwość odzyskania podatku VAT tj. obniżenia kwoty podatku należnego o kwotę podatku naliczonego lub ubiegania się o zwrot VAT wówczas należy wybrać TAK, a podatek VAT stanowi w takim przypadku koszty niekwalifikowalne projektu (UWAGA! Dla uznania podatku VAT za niekwalifikowalny wystarczające jest posiadanie prawa tj. potencjalnej możliwości prawnej, do ubiegania się o zwrot VAT, nawet jeśli faktycznie zwrot nie nastąpi np. ze względu na niepodjęcie czynności zmierzających do realizacji tego prawa).\nJeżeli wnioskodawca nie ma zgodnie z obowiązującymi przepisami prawa możliwości odzyskania podatku VAT tj. obniżenia kwoty podatku należnego o kwotę podatku naliczonego lub ubiegania się o zwrot VAT wówczas, należy wybrać opcję \"NIE\"."]
[]
["W przypadku wybrania opcji NIE w wierszu poniżej należy wskazać podstawy prawne oraz opisać, z czego wynika brak możliwości odzyskania VAT i/lub brak możliwości ubiegania się o zwrot VAT."]

{"sheet":"Rozpoczęcie projektu","index":5,"n_rows":4,"n_cols":1,"rows_kept":4,"cut":false,"hidden":false,"merged":[]}
["Rozpoczęcie projektu"]
["W wierszu poniżej należy wskazać czy wnioskodawca przed dniem złożenia wniosku o dofinansowanie podejmował czynności związane lub służące rozpoczęciu realizacji projektu."]
[]
["Jeżeli w pytaniu powyżej wybrano opcję TAK, w wierszu poniżej należy opisać jakie działania w związku z rozpoczęciem realizacji projektu zostały podjęte przez wnioskodawcę. Jeżeli wnioskodawca podejmował działania związane z realizacją przedmiotowego projektu, dla każdego z tych działań należy wskazać daty ich przeprowadzenia oraz wskazać czy działania zostały ukończone i jakie są ich ewentualne efekty. Jeżeli wnioskodawca rozpoczął realizację projektu i Regulamin wyboru projektów dopuszcza taką możliwość, należy jednoznacznie wskazać czy projekt realizowany był dotychczas zgodnie z prawem krajowym i unijnym oraz nie został fizycznie ukończony lub w pełni wdrożony przed przedłożeniem wniosku o dofinansowanie w ramach naboru, niezależnie od tego, czy dokonano wszystkich powiązanych płatności\nJeżeli wybrano opcję NIE wiersz poniżej może pozostać niewypełniony."]

{"sheet":"Zasady horyzontalne","index":6,"n_rows":15,"n_cols":1,"rows_kept":15,"cut":false,"hidden":false,"merged":[]}
["Zasady horyzontalne (na podstawie art. 9 ust. 1-4 Rozporządzenia Parlamentu Europejskiego i Rady (UE) 2021/1060 z dnia 24 czerwca 2021 r.)"]
["Zgodność z Kartą Praw Podstawowych Unii Europejskiej"]
["W wierszu poniżej należy opisać czy projekt jest zgodny z Kartą Praw Podstawowych Unii Europejskiej, w zakresie odnoszącym się do sposobu realizacji i zakresu projektu. Należy wskazać z jakimi aspektami Karty Praw Podstawowych projekt jest zgodny i w jaki sposób przejawia się ww. zgodność w projekcie. Zgodność projektu z Kartą Praw Podstawowych Unii Europejskiej należy rozumieć jako brak sprzeczności pomiędzy zapisami projektu a wymogami tego dokumentu lub stwierdzenie, że te wymagania są neutralne wobec zakresu i zawartości projektu. Zastosowanie mają Wytyczne Komisji Europejskiej dotyczące zapewnienia poszanowania Karty praw podstawowych Unii Europejskiej przy wdrażaniu europejskich funduszy strukturalnych i inwestycyjnych, w szczególności załącznik nr III."]
[]
["Zgodność z zasadą równości mężczyzn i kobiet"]
["W wierszu poniżej należy opisać czy projekt ma pozytywny wpływ na zasadę równości mężczyzn i kobiet. Należy wskazać w jaki sposób przejawia się ww. zgodność w projekcie. Przez zgodność z tą zasadą należy rozumieć, z jednej strony zaplanowanie takich działań w projekcie, które wpłyną na wyrównywanie szans danej płci będącej w gorszym położeniu (o ile takie nierówności zostały zdiagnozowane w projekcie), z drugiej strony zaś stworzenie takich mechanizmów, aby na żadnym etapie wdrażania projektu nie dochodziło do dyskryminacji i wykluczenia ze względu na płeć. Dopuszczalne jest także uznanie neutralności projektu w stosunku do zasady równości kobiet i mężczyzn. O neutralności można mówić jednak tylko wtedy, kiedy wnioskodawca uzasadni, dlaczego dany projekt nie jest w stanie zrealizować jakichkolwiek działań w zakresie spełnienia ww. zasady."]
[]
["Zgodność z zasadami dostępności dla osób z niepełnosprawnościami, w tym z koncepcją uniwersalnego projektowania "]
["W wierszu poniżej należy opisać czy projekt ma pozytywny bądź neutralny wpływ na realizację zasad dostępności dla osób z niepełnosprawnościami zgodnie z Wytycznymi dotyczącymi realizacji zasad równościowych w ramach funduszy unijnych na lata 2021-2027, w tym czy realizacja projektu uwzględnia działania zgodne z koncepcją uniwersalnego projektowania. Należy szczegółowo opisać, które rozwiązania zastosowane w projekcie mają pozytywny wpływ na realizację zasad dostępności i wyjaśnić dlaczego lub wskazać że projekt w tym zakresie jest neutralny i wyjaśnić dlaczego. Ponadto należy szczegółowo opisać w jakim zakresie w projekcie ma zastosowanie uniwersalne projektowanie i w jaki sposób przejawia się to w projekcie. W opisie należy się odwoływać do aspektów, które zostały szczegółowo opisane w Wytycznych dotyczących realizacji zasad równościowych w ramach funduszy unijnych na lata 2021-2027, w tym do standardów dostępności."]
[]
["Zgodność z Konwencją o Prawach Osób Niepełnosprawnych"]
["W wierszu poniżej należy opisać czy projekt jest zgodny z Konwencją o Prawach Osób Niepełnosprawnych, w zakresie odnoszącym się do sposobu realizacji, zakresu projektu i wnioskodawcy. Należy wskazać z jakimi aspektami Konwencji o Prawach Osób Niepełnosprawnych projekt jest zgodny i w jaki sposób przejawia się ww. zgodność w projekcie. Zgodność projektu z Konwencją o Prawach Osób Niepełnosprawnych należy rozumieć jako brak sprzeczności pomiędzy zapisami projektu a wymogami tego dokumentu lub stwierdzenie, że te wymagania są neutralne wobec zakresu i zawartości projektu."]
[]
["Zgodność z zasadami niedyskryminacji"]
["W wierszu poniżej należy opisać czy realizacja projektu nie będzie skutkować jakąkolwiek dyskryminacją ze względu na płeć, rasę lub pochodzenie etniczne, religię lub światopogląd, niepełnosprawność, wiek lub orientację seksualną. Należy wskazać w jaki sposób brak dyskryminacji przejawia się w projekcie."]

{"sheet":"Środowisko","index":7,"n_rows":58,"n_cols":1,"rows_kept":58,"cut":false,"hidden":false,"merged":[]}
["Sekcja I. Zgodność z zasadą „nie czyń poważnych szkód” (DNSH - Do No Significant Harm) "]
["Zasada \"nie czyń poważnych szkód\" DNSH wynika z art. 9 ust. 4 Rozporządzenia Parlamentu Europejskiego i Rady (UE) 2021/1060 z dnia 24 czerwca 2021 r. ustanawiającego wspólne przepisy dotyczące Europejskiego Funduszu Rozwoju Regionalnego, Europejskiego Funduszu Społecznego Plus, Funduszu Spójności, Funduszu na rzecz Sprawiedliwej Transformacji i Europejskiego Funduszu Morskiego, Rybackiego i Akwakultury, a także przepisy finansowe na potrzeby tych funduszy oraz na potrzeby Funduszu Azylu, Migracji i Integracji, Funduszu Bezpieczeństwa Wewnętrznego i Instrumentu Wsparcia Finansowego na rzecz Zarządzania Granicami i Polityki Wizowej). \nZasada DNSH dotyczy niewspierania ani nieprowadzenia działalności gospodarczej, która powoduje znaczące szkody dla któregokolwiek z celów środowiskowych określonych w art. 17 Rozporządzenia Parlamentu Europejskiego i Rady (UE) 2020/852 z dnia 18 czerwca 2020 r. w sprawie ustanowienia ram ułatwiających zrównoważone inwestycje, zmieniającego rozporządzenie (UE) 2019/2088 (Tekst mający znaczenie dla EOG), dalej rozporządzenie o taksonomii.\nProjekt podlega ocenie względem sześciu poniżej wskazanych celów środowiskowych. Należy wybrać odpowiedź TAK/NIE/NIE DOTYCZY w każdym z poniższych pytań oraz uzasadnić odpowiedź w polu opisowym, zgodnie z poniższymi instrukcjami. Aby można było uznać że projekt jest zgodny z zasadą DNSH nie może powodować znaczących szkód względem 6 celów środowiskowych wymienionych poniżej. Przy ocenie należy uwzględnić zarówno skutki środowiskowe samej działalności której dotyczy przedsięwzięcie, jak również wpływ, jaki na środowisko mają produkty dostarczane i usługi świadczone w ramach tej działalności przez cały cykl ich życia, szczególnie z uwzględnieniem wytwarzania, użytkowania i zakończenia cyklu życia tych produktów i usług."]
["Cel 1: Łagodzenie zmian klimatu: Czy projekt doprowadzi do znacznych emisji gazów cieplarnianych?"]
[]
["Zgodnie z art. 17 ust. 1 lit. a) rozporządzenia o taksonomii, jeżeli projekt prowadzi do znacznych emisji gazów cieplarnianych to wyrządza poważne szkody dla środowiska i jest niezgodny z zasadą DNSH. W przypadku wskazania odpowiedzi \"NIE\" należy opisać w poniższym polu, w jaki sposób realizacja projektu przyczynia się do realizacji celów polityki ochrony środowiska oraz w jaki sposób wpisuje się w cele klimatyczne określone w Strategii Europejski Zielony Ład, Prawie Klimatycznym, Pakiecie energetyczno - klimatycznym, Krajowym Planie na Rzecz Energii i Klimatu na lata 2021-2030, w cel dążenia do neutralności klimatycznej do roku 2050. W przypadku udzielania odpowiedzi TAK projekt nie może kwalifikować się do wsparcia."]
[]
["Cel 2: Adaptacja do zmian klimatu: Czy projekt doprowadzi do zwiększonego niekorzystnego wpływu obecnego i spodziewanego przyszłego klimatu na samo działanie lub na ludność, przyrodę lub aktywa?"]
[]
["Zgodnie z art. 17 ust. 1 lit. b) rozporządzenia o taksonomii, jeżeli działalność prowadzi do nasilenia niekorzystnych skutków obecnych i oczekiwanych, dla przyszłych warunków klimatycznych, wywieranych na tę działalność lub na ludzi, przyrodę lub aktywa to wpływa znacząco na środowisko i jest niezgodny z zasadą DNSH.\nW przypadku wskazania odpowiedzi \"NIE\" należy opisać w poniższym polu:\n- w jaki sposób uwzględniono zagrożenia związane ze zmianami klimatu (np. obciążenia śniegiem, wiatrem, różnicy temperatur i odziaływania np. fali upałów, zagrożenia powodziowego, suszy), \n- w jaki sposób uwzględniono kwestie dotyczące przystosowania się do zmian klimatu i ich łagodzenia oraz odporności na klęski żywiołowe,\n- czy w trakcie przygotowywania projektu przeprowadzono ocenę zagrożeń wynikających ze zmian klimatycznych lub kontrolę podatności (ocenę ryzyka związanego prognozowanymi zmianami klimat lub analizę podatności),\n- w jaki sposób projekt odnosi się do strategii krajowej lub regionalnej w zakresie przystosowania się do zmian klimatu,\n- czy projekt w połączeniu ze zmianami klimatu będzie miał jakikolwiek pozytywny lub negatywny wpływ na otoczenie,\n- czy zmiany klimatu wpłynęły na wybór lokalizacji projektu.\nW przypadku udzielania odpowiedzi \"TAK\" projekt nie może kwalifikować się do wsparcia."]
[]
["Cel 3: Zrównoważone wykorzystywanie i ochrona zasobów wodnych i morskich: Czy projekt obejmuje zmiany charakterystyki fizycznej lub chemicznej części wód powierzchniowych, wód gruntowych lub zmiany poziomu części wód podziemnych, które pogarszają stan jednolitej części wód lub uniemożliwiają osiągnięcie dobrego stanu wód w tym stanu wód morskich? "]
[]
["Cele dla osiągnięcia dobrego stanu ekologicznego i chemicznego wód powierzchniowych, jak również dobrego stanu chemicznego i ilościowego wód podziemnych wyznacza Dyrektywa 2000/60/WE Parlamentu Europejskiego i Rady z dnia 23 października 2000 r. ustanawiająca ramy wspólnotowego działania w dziedzinie polityki wodnej (Ramowa dyrektywa wodna). Osiągnięcie celów ww. Dyrektywy wspierane jest poprzez opracowanie niezbędnych dokumentów planistycznych, jakimi są Plany gospodarowania wodami na obszarach dorzeczy oraz Program wodnośrodowiskowy kraju, w tym w oparciu o Ustawę z dnia 20 lipca 2017 r. Prawo wodne. Zgodnie z art. 17 ust. 1 lit. c) rozporządzenia o taksonomii, jeżeli projekt będzie zagrażał dobremu stanowi lub dobremu potencjałowi ekologicznemu jednolitych części wód, w tym wód powierzchniowych i wód gruntowych lub dobremu stanowi środowiska wód morskich to wpływa znacząco na środowisko i jest niezgodny z zasadą DNSH. Dotyczy projektów infrastrukturalnych, które z racji swojego charakteru i zakresu mogą oddziaływać na określoną jednolitą część wód. W pozostałych przypadkach zasadny jest wybór odpowiedzi \"NIE DOTYCZY\", co oznacza neutralny charakter projektu. W takim przypadku pole opisowe należy pozostawić puste.\nW przypadku projektów infrastrukturalnych, które z racji swojego charakteru i zakresu mogą oddziaływać na określoną jednolitą część wód i wskazania odpowiedzi \"NIE\", wnioskodawca będzie zobligowany na wezwanie LAWP do przedstawienia deklaracji zgodności właściwego organu w sprawach ocen wodnoprawnych, że projekt nie pogarsza stanu jednolitego części wód lub ich dobrego potencjału.\nW przypadku projektów infrastrukturalnych, które z racji swojego charakteru i zakresu mogą oddziaływać na określoną jednolitą część wód i wskazania odpowiedzi „TAK” (tj. inwestycji lub działań mogących wpłynąć na możliwość osiągnięcia celów środowiskowych, o których mowa w art. 56, art. 57, art. 59 oraz w art. 61 Prawa wodnego, dotyczy np. takich działań jak budowle piętrzące, falochrony, duży pobór wody), wnioskodawca będzie zobligowany na wezwanie LAWP do przedstawienia oceny wodnoprawnej, o której mowa w art. 430, art. 431 i art. 434 ust. 1 ustawy z dnia 20 lipca 2017 r. Prawo wodne, wydanej w drodze decyzji, przez organ właściwy w sprawach ocen wodnoprawnych, potwierdzającej zgodność inwestycji lub działań z celami środowiskowymi lub przedłożenia decyzji o środowiskowych uwarunkowaniach, w treści której znajdą się wnioski z przeprowadzonej analizy oddziaływania inwestycji na jednolite części wód (jeżeli taka decyzja została wydana)."]
[]
["Cel 4: Gospodarka o obiegu zamkniętym, w tym zapobieganie powstawaniu odpadów i recykling: Czy projekt prowadzi do znacznego zwiększenia wytwarzania, spalania lub unieszkodliwiania odpadów (z wyjątkiem spalania odpadów niebezpiecznych nienadających się do recyklingu) lub doprowadzi do znaczącej nieefektywności w zakresie bezpośredniego lub pośredniego korzystania z jakiegokolwiek zasobu naturalnego na dowolnym etapie jego cyklu życia, która nie zostanie ograniczona do minimum za pomocą odpowiednich środków lub długotrwałego składowania odpadów, prowadzącego do wyrządzenia poważnych i długoterminowych szkód dla środowiska?"]
[]
["Zgodnie z art. 17 ust. 1 lit. d) rozporządzenia o taksonomii, jeżeli projekt prowadzi do znacznego zwiększenia wytwarzania, spalania lub unieszkodliwiania odpadów (z wyjątkiem spalania odpadów niebezpiecznych nienadających się do recyklingu) lub doprowadzi do znaczącego braku efektywności w wykorzystywaniu materiałów lub w bezpośrednim lub pośrednim wykorzystywaniu zasobów naturalnych, takich jak nieodnawialne źródła energii, surowce, woda i grunty, na co najmniej jednym z etapów cyklu życia produktów, w tym pod względem trwałości produktów, a także możliwości ich naprawy, ulepszenia, ponownego użycia lub recyklingu lub długotrwałego składowania odpadów, prowadzącego do wyrządzenia poważnych i długoterminowych szkód dla środowiska to wpływa znacząco na środowisko i jest niezgodny z zasadą DNSH.\nW przypadku wybrania odpowiedzi \"NIE\" należy opisać, w jaki sposób realizacja projektu wpływa na zapobieganie powstawaniu odpadów oraz ich ponowne użycie i recykling, np. czy została uwzględniona hierarchia sposobów postępowania z odpadami (od zapobiegania powstawaniu odpadów, poprzez selektywne zbieranie, przygotowanie do ponownego użytku, recykling, inne procesy odzysku do unieszkodliwiania). W przypadku udzielania odpowiedzi \"TAK\" projekt nie może kwalifikować się do wsparcia."]
[]
["Cel 5: Zapobieganie zanieczyszczeniom powietrza, wody lub gleby i jego kontrola: Czy projekt doprowadzi do istotnego zwiększenia poziomu emisji zanieczyszczeń do powietrza, wody lub gleby?"]
[]
["Zgodnie z art. 17 ust. 1 lit. e) rozporządzenia o taksonomii, jeżeli projekt prowadzi do znaczącego wzrostu emisji zanieczyszczeń do powietrza, wody lub ziemi w porównaniu z sytuacją sprzed rozpoczęcia realizacji projektu to wpływa znacząco na środowisko i jest niezgodny z zasadą DNSH.\nW przypadku odpowiedzi \"NIE\" należy w polu opisowym wykazać aspekty projektu, które wpływają na brak zwiększenia poziomu emisji zanieczyszczeń, w tym np. działania dążące do poprawy jakości powietrza, wody lub gleby na obszarach, na których prowadzona jest dana działalność gospodarcza, przy jednoczesnym minimalizowaniu i zapobieganiu wszelkich niekorzystnych skutków lub zagrożeń dla zdrowia ludzi dla środowiska wynikających z produkcji, stosowania lub unieszkodliwiania chemikaliów lub minimalizowania takich niekorzystnych skutków. \nDodatkowo w przypadku, gdy działalność wnioskodawcy ma wpływ na środowisko należy dodatkowo opisać w jaki sposób w projekcie została uwzględniona zasada \"zanieczyszczający płaci\", według której sprawcy szkód w środowisku powinni ponosić pełne koszty tych działań, które są niezbędne dla usunięcia zanieczyszczenia lub koszty równoważnych działań umożliwiających osiągnięcie celów ochrony środowiska.\nW przypadku udzielania odpowiedzi \"TAK\" projekt nie może kwalifikować się do wsparcia."]
[]
["Cel 6: Ochrona i odbudowa bioróżnorodności i ekosystemów: Czy projekt  będzie w znacznym stopniu szkodliwy dla dobrego stanu i odporności ekosystemów lub będzie szkodliwy dla stanu zachowania siedlisk i gatunków w tym siedlisk i gatunków objętych zakresem zainteresowania Unii?"]
[]
["Zgodnie z art. 17 ust. 1 lit. f) rozporządzenia o taksonomii przedsięwzięcie, które będzie w znacznym stopniu szkodliwe dla dobrego stanu i odporności ekosystemów lub będzie szkodliwe dla stanu zachowania siedlisk i gatunków, w tym siedlisk i gatunków objętych zakresem zainteresowania Unii wpływa znacząco na środowisko i jest niezgodne z zasadą DNSH. W przypadku projektów, które nie obejmują robót budowlanych (nie zależnie czy wnioskodawca ponosi bezpośrednie nakłady na roboty czy ponosi je podmiot trzeci, a wnioskodawca nabywa wyłącznie środki trwałe, będący efektem tych robót) należy wybrać opcję \"NIE DOTYCZY\", zaś pole opisowe pozostawić puste.\nW przypadku projektów, których realizacja wymaga przeprowadzenia robót budowlanych, gdy nie istniało lub nie istnieje prawdopodobieństwo, że projekt może znacząco oddziaływać na obszary Natura 2000, należy wybrać opcję \"NIE\". W takim przypadku wnioskodawca zobligowany jest do przedłożenia Deklaracji organu odpowiedzialnego za monitorowanie obszarów Natura2000.\nW przypadku projektów, których realizacja wymaga przeprowadzenia robót budowlanych, jeżeli wybrano odpowiedz \"TAK\" wnioskodawca będzie zobligowany na wezwanie LAWP do przedstawienia:\na) decyzji administracyjnej, w przypadku której prowadzi się postępowanie w sprawie oceny oddziaływania na obszar Natura 2000 (dla przedsięwzięć mogących wpływać na obszar Natura 2000);\nb) postanowienia RDOŚ uzgadniającego decyzję, w przypadku której prowadzi się postępowanie w sprawie oceny oddziaływania na obszar Natura 2000 (dla przedsięwzięć mogących wpływać na obszar Natura 2000);\nc) formularza „Informacja na temat projektów, które mogą wywierać istotny negatywny wpływ na obszary NATURA 2000, zgłoszone Komisji na mocy dyrektywy 92/43/EWG” wraz z niezbędnymi opiniami, jeżeli organ, który wydał zgodę na realizację przedsięwzięcia, stwierdził występowanie negatywnego oddziaływania na obszar Natura 2000."]
[]
["Sekcja II Zgodność projektu z zasadami zrównoważonego rozwoju"]
["W poniższych polach należy udzielić odpowiedzi, czy projekt będzie realizowany zgodnie z zasadą zrównoważonego rozwoju, o której mowa w art. 9 ust. 4 Rozporządzenia Parlamentu Europejskiego i Rady 2021/1060 tj. cele Funduszy są realizowane zgodnie z celem wspierania zrównoważonego rozwoju, określonym w art. 11 TFUE, oraz z uwzględnieniem celów ONZ dotyczących zrównoważonego rozwoju, a także porozumienia paryskiego i zasady „nie czyń poważnych szkód” oraz ustawą z dnia 27 kwietnia 2001 r. Prawo ochrony środowiska, określającą zasady ochrony środowiska oraz warunki korzystania z jego zasobów. Należy wskazać, jakie działania zostaną podjęte w ramach projektu w celu spełnienia przynajmniej dwóch z niżej wskazanych zasad (6R) lub wskazać czy projekt wywiera pozytywny wpływ na inne aspekty środowiskowe, które nie są objęte poniższymi zasadami (6R). "]
["1. Czy w projekcie uwzględniono działania zgodne z zasadą zrównoważonego rozwoju - Refuse (odmów)? \nCelem tej zasady jest zmniejszenie ilości odpadów, zużycia surowców i emisji zanieczyszczeń poprzez unikanie produkcji i konsumpcji niepotrzebnych rzeczy oraz unikanie wszelkich działań, produktów i usług, które są nieodpowiednie lub szkodliwe dla środowiska. Zasada ta polegać może np. na rezygnacji z użycia materiałów i innych produktów, które nie nadają się do ponownego użycia.  "]
[]
["Jeżeli w pytaniu powyżej wybrano opcję TAK, w wierszu poniżej należy opisać jakie działania zostaną podjęte oraz w jaki sposób wnioskodawca będzie monitorował spełnienie założeń."]
[]
["2. Czy w projekcie uwzględniono działania zgodne z zasadą zrównoważonego rozwoju - Reduce (ogranicz)? \nCelem tej zasady jest zminimalizowanie negatywnego wpływu na środowisko i ograniczenie marnowania surowców. Zasada ta polegać może np. na zmniejszaniu zużycia zasobów, materiałów i substancji poprzez zastosowanie odpowiednich działań, np. technologicznych, poprzez wybór produktów i usług, które są bardziej wydajne i zużywają mniej surowców i energii, a także poprzez zmianę nawyków i stylów życia, które wprowadzają bardziej oszczędne i zrównoważone podejście do konsumpcji."]
[]
["Jeżeli w pytaniu powyżej wybrano opcję TAK, w wierszu poniżej należy opisać jakie działania zostaną podjęte oraz w jaki sposób wnioskodawca będzie monitorował spełnienie założeń."]
[]
["3. Czy w projekcie uwzględniono działania zgodne z zasadą zrównoważonego rozwoju - Reuse (użyj ponownie)? \nCelem tej zasady jest zwiększenie wydajności i zmniejszenie zużycia surowców, a także zmniejszenie ilości odpadów i zanieczyszczeń. Zasada ta polegać może np. ponownym użyciu produktów, ponownym wykorzystaniu opakowań, renowację i naprawianie produktów, a także stosowanie produktów wielokrotnego użytku, takich jak butelki na wodę i torby na zakupy."]
[]
["Jeżeli w pytaniu powyżej wybrano opcję TAK, w wierszu poniżej należy opisać jakie działania zostaną podjęte oraz w jaki sposób wnioskodawca będzie monitorował spełnienie założeń."]
[]
["4. Czy w projekcie uwzględniono działania zgodne z zasadą zrównoważonego rozwoju - Recover (napraw)? \nCelem tej zasady jest zmniejszenie ilości odpadów i zapotrzebowania na surowce pierwotne. Zasada ta polegać może np. na wprowadzaniu rozwiązań umożliwiających naprawę i ponowne użycie produktów, które można ponownie wykorzystać w procesie produkcji a także odzysk energii z biogazu, odpadów."]
[]
["Jeżeli w pytaniu powyżej wybrano opcję TAK, w wierszu poniżej należy opisać jakie działania zostaną podjęte oraz w jaki sposób wnioskodawca będzie monitorował spełnienie założeń.\nJeżeli wybrano opcję NIE wiersz poniżej może pozostać niewypełniony."]
[]
["5. Czy w projekcie uwzględniono działania zgodne z zasadą zrównoważonego rozwoju - Recycle (recyklinguj)? \nCelem tej zasady jest zmniejszenie ilości odpadów, które trafiają do składowisk, a także zmniejszenie zapotrzebowania na surowce pierwotne. Zasada ta polegać może np. na ponownym wykorzystaniu surowców i produktów, w celu zmniejszenia ich negatywnego wpływu na środowisko."]
[]
["Jeżeli w pytaniu powyżej wybrano opcję TAK, w wierszu poniżej należy opisać jakie działania zostaną podjęte oraz w jaki sposób wnioskodawca będzie monitorował spełnienie założeń."]
[]
["6. Czy w projekcie uwzględniono działania zgodne z zasadą zrównoważonego rozwoju - Rethink (ulepsz)? \nCelem tej zasady jest zmiana sposobu myślenia i działania, aby zapobiegać powstawaniu odpadów, poprzez zmianę projektów, produktów i procesów, tak aby były one bardziej efektywne i przyjazne dla środowiska. Zasada ta polegać może np. na zmniejszaniu zużycia zasobów, materiałów i substancji poprzez zastosowanie odpowiednich działań, np. technologicznych."]
[]
["Jeżeli w pytaniu powyżej wybrano opcję TAK, w wierszu poniżej należy opisać jakie działania zostaną podjęte oraz w jaki sposób wnioskodawca będzie monitorował spełnienie założeń."]
[]
["7. Czy w projekcie uwzględniono inne działania mające pozytywny wpływ na środowisko, nie wymienione wyżej?"]
[]
["Jeżeli w pytaniu powyżej wybrano opcję TAK, w wierszu poniżej należy opisać jakie działania zostaną podjęte oraz w jaki sposób wnioskodawca będzie monitorował spełnienie założeń."]
[]
["Sekcja III Uodparnianie na zmiany klimatu inwestycji."]
["W przypadku inwestycji w infrastrukturę o przewidywanej trwałości wynoszącej co najmniej 5 lat, należy opisać w polu tekstowym poniżej, w jaki sposób wnioskodawca w ramach projektu zapewni uodparnianie na zmiany klimatu, co oznacza działania mające na celu zapobieganie podatności infrastruktury na potencjalne długoterminowe skutki zmian klimatu, przy jednoczesnym zapewnieniu przestrzegania zasady „efektywności energetycznej przede wszystkim” oraz zgodności poziomu emisji gazów cieplarnianych wynikających z projektu, z celem osiągnięcia neutralności klimatycznej w 2050 r. Jeżeli projekt nie dotyczy inwestycji w infrastrukturę o przewidywanej trwałości co najmniej 5 lat, należy w wierszu poniżej, wpisać \"nie dotyczy\"."]

{"sheet":"Specyfikacja kosztów","index":8,"n_rows":35,"n_cols":13,"rows_kept":35,"cut":false,"hidden":false,"merged":[]}
["Specyfikacja kosztów z uwzględnieniem analizy rynku"]
["Uwaga: pola oznaczone kolorem żółtym są polami nieedytowalnymi."]
[null,"Instrukcja wypełniania arkusza (kliknij)"]
["Lp.","Nazwa kosztu","Nazwa zadania","Opis i uzasadnienie kosztów","Jednostka miary ","Ilość ","Analiza rynku ","Wartość netto zł","Stawka VAT %","Wartość ogółem zł","Wydatki kwalifikowalne  zł","% poziom wsparcia","Dofinansowanie zł"]
[{"$f":"ROW()-4","v":1},null,null,null,null,null,null,null,null,{"$f":"IF(I5=\"ZW/ND\",H5,ROUNDDOWN($H5*(1+($I5/100)),2))","v":0},null,null,{"$f":"ROUNDDOWN((Specyfikacja_wnioskodawca[[#This Row],[Wydatki kwalifikowalne  zł]]*Specyfikacja_wnioskodawca[[#This Row],[% poziom wsparcia]]/100),2)","v":0}]
[{"$f":"ROW()-4","v":2},null,null,null,null,null,null,null,null,0,null,null,{"$f":"ROUNDDOWN((Specyfikacja_wnioskodawca[[#This Row],[Wydatki kwalifikowalne  zł]]*Specyfikacja_wnioskodawca[[#This Row],[% poziom wsparcia]]/100),2)","v":0}]
[{"$f":"ROW()-4","v":3},null,null,null,null,null,null,null,null,0,null,null,{"$f":"ROUNDDOWN((Specyfikacja_wnioskodawca[[#This Row],[Wydatki kwalifikowalne  zł]]*Specyfikacja_wnioskodawca[[#This Row],[% poziom wsparcia]]/100),2)","v":0}]
[{"$f":"ROW()-4","v":4},null,null,null,null,null,null,null,null,0,null,null,{"$f":"ROUNDDOWN((Specyfikacja_wnioskodawca[[#This Row],[Wydatki kwalifikowalne  zł]]*Specyfikacja_wnioskodawca[[#This Row],[% poziom wsparcia]]/100),2)","v":0}]
[5,null,null,null,null,null,null,null,null,0,null,null,{"$f":"ROUNDDOWN((Specyfikacja_wnioskodawca[[#This Row],[Wydatki kwalifikowalne  zł]]*Specyfikacja_wnioskodawca[[#This Row],[% poziom wsparcia]]/100),2)","v":0}]
[6,null,null,null,null,null,null,null,null,0,null,null,{"$f":"ROUNDDOWN((Specyfikacja_wnioskodawca[[#This Row],[Wydatki kwalifikowalne  zł]]*Specyfikacja_wnioskodawca[[#This Row],[% poziom wsparcia]]/100),2)","v":0}]
[7,null,null,null,null,null,null,null,null,0,null,null,{"$f":"ROUNDDOWN((Specyfikacja_wnioskodawca[[#This Row],[Wydatki kwalifikowalne  zł]]*Specyfikacja_wnioskodawca[[#This Row],[% poziom wsparcia]]/100),2)","v":0}]
[8,null,null,null,null,null,null,null,null,0,null,null,{"$f":"ROUNDDOWN((Specyfikacja_wnioskodawca[[#This Row],[Wydatki kwalifikowalne  zł]]*Specyfikacja_wnioskodawca[[#This Row],[% poziom wsparcia]]/100),2)","v":0}]
[9,null,null,null,null,null,null,null,null,0,null,null,{"$f":"ROUNDDOWN((Specyfikacja_wnioskodawca[[#This Row],[Wydatki kwalifikowalne  zł]]*Specyfikacja_wnioskodawca[[#This Row],[% poziom wsparcia]]/100),2)","v":0}]
[10,null,null,null,null,null,null,null,null,0,null,null,{"$f":"ROUNDDOWN((Specyfikacja_wnioskodawca[[#This Row],[Wydatki kwalifikowalne  zł]]*Specyfikacja_wnioskodawca[[#This Row],[% poziom wsparcia]]/100),2)","v":0}]
[11,null,null,null,null,null,null,null,null,0,null,null,{"$f":"ROUNDDOWN((Specyfikacja_wnioskodawca[[#This Row],[Wydatki kwalifikowalne  zł]]*Specyfikacja_wnioskodawca[[#This Row],[% poziom wsparcia]]/100),2)","v":0}]
[12,null,null,null,null,null,null,null,null,0,null,null,{"$f":"ROUNDDOWN((Specyfikacja_wnioskodawca[[#This Row],[Wydatki kwalifikowalne  zł]]*Specyfikacja_wnioskodawca[[#This Row],[% poziom wsparcia]]/100),2)","v":0}]
[13,null,null,null,null,null,null,null,null,0,null,null,{"$f":"ROUNDDOWN((Specyfikacja_wnioskodawca[[#This Row],[Wydatki kwalifikowalne  zł]]*Specyfikacja_wnioskodawca[[#This Row],[% poziom wsparcia]]/100),2)","v":0}]
[14,null,null,null,null,null,null,null,null,0,null,null,{"$f":"ROUNDDOWN((Specyfikacja_wnioskodawca[[#This Row],[Wydatki kwalifikowalne  zł]]*Specyfikacja_wnioskodawca[[#This Row],[% poziom wsparcia]]/100),2)","v":0}]
[15,null,null,null,null,null,null,null,null,0,null,null,{"$f":"ROUNDDOWN((Specyfikacja_wnioskodawca[[#This Row],[Wydatki kwalifikowalne  zł]]*Specyfikacja_wnioskodawca[[#This Row],[% poziom wsparcia]]/100),2)","v":0}]
[16,null,null,null,null,null,null,null,null,0,null,null,{"$f":"ROUNDDOWN((Specyfikacja_wnioskodawca[[#This Row],[Wydatki kwalifikowalne  zł]]*Specyfikacja_wnioskodawca[[#This Row],[% poziom wsparcia]]/100),2)","v":0}]
[17,null,null,null,null,null,null,null,null,0,null,null,{"$f":"ROUNDDOWN((Specyfikacja_wnioskodawca[[#This Row],[Wydatki kwalifikowalne  zł]]*Specyfikacja_wnioskodawca[[#This Row],[% poziom wsparcia]]/100),2)","v":0}]
[18,null,null,null,null,null,null,null,null,0,null,null,{"$f":"ROUNDDOWN((Specyfikacja_wnioskodawca[[#This Row],[Wydatki kwalifikowalne  zł]]*Specyfikacja_wnioskodawca[[#This Row],[% poziom wsparcia]]/100),2)","v":0}]
[19,null,null,null,null,null,null,null,null,0,null,null,{"$f":"ROUNDDOWN((Specyfikacja_wnioskodawca[[#This Row],[Wydatki kwalifikowalne  zł]]*Specyfikacja_wnioskodawca[[#This Row],[% poziom wsparcia]]/100),2)","v":0}]
[20,null,null,null,null,null,null,null,null,0,null,null,{"$f":"ROUNDDOWN((Specyfikacja_wnioskodawca[[#This Row],[Wydatki kwalifikowalne  zł]]*Specyfikacja_wnioskodawca[[#This Row],[% poziom wsparcia]]/100),2)","v":0}]
[21,null,null,null,null,null,null,null,null,0,null,null,{"$f":"ROUNDDOWN((Specyfikacja_wnioskodawca[[#This Row],[Wydatki kwalifikowalne  zł]]*Specyfikacja_wnioskodawca[[#This Row],[% poziom wsparcia]]/100),2)","v":0}]
[22,null,null,null,null,null,null,null,null,0,null,null,{"$f":"ROUNDDOWN((Specyfikacja_wnioskodawca[[#This Row],[Wydatki kwalifikowalne  zł]]*Specyfikacja_wnioskodawca[[#This Row],[% poziom wsparcia]]/100),2)","v":0}]
[{"$f":"ROW()-4","v":23},null,null,null,null,null,null,null,null,0,null,null,{"$f":"ROUNDDOWN((Specyfikacja_wnioskodawca[[#This Row],[Wydatki kwalifikowalne  zł]]*Specyfikacja_wnioskodawca[[#This Row],[% poziom wsparcia]]/100),2)","v":0}]
[24,null,null,null,null,null,null,null,null,0,null,null,{"$f":"ROUNDDOWN((Specyfikacja_wnioskodawca[[#This Row],[Wydatki kwalifikowalne  zł]]*Specyfikacja_wnioskodawca[[#This Row],[% poziom wsparcia]]/100),2)","v":0}]
[25,null,null,null,null,null,null,null,null,0,null,null,{"$f":"ROUNDDOWN((Specyfikacja_wnioskodawca[[#This Row],[Wydatki kwalifikowalne  zł]]*Specyfikacja_wnioskodawca[[#This Row],[% poziom wsparcia]]/100),2)","v":0}]
[26,null,null,null,null,null,null,null,null,0,null,null,{"$f":"ROUNDDOWN((Specyfikacja_wnioskodawca[[#This Row],[Wydatki kwalifikowalne  zł]]*Specyfikacja_wnioskodawca[[#This Row],[% poziom wsparcia]]/100),2)","v":0}]
[27,null,null,null,null,null,null,null,null,0,null,null,{"$f":"ROUNDDOWN((Specyfikacja_wnioskodawca[[#This Row],[Wydatki kwalifikowalne  zł]]*Specyfikacja_wnioskodawca[[#This Row],[% poziom wsparcia]]/100),2)","v":0}]
[28,null,null,null,null,null,null,null,null,0,null,null,{"$f":"ROUNDDOWN((Specyfikacja_wnioskodawca[[#This Row],[Wydatki kwalifikowalne  zł]]*Specyfikacja_wnioskodawca[[#This Row],[% poziom wsparcia]]/100),2)","v":0}]
[{"$f":"ROW()-4","v":29},null,null,null,null,null,null,null,null,0,null,null,{"$f":"ROUNDDOWN((Specyfikacja_wnioskodawca[[#This Row],[Wydatki kwalifikowalne  zł]]*Specyfikacja_wnioskodawca[[#This Row],[% poziom wsparcia]]/100),2)","v":0}]
[30,null,null,null,null,null,null,null,null,0,null,null,{"$f":"ROUNDDOWN((Specyfikacja_wnioskodawca[[#This Row],[Wydatki kwalifikowalne  zł]]*Specyfikacja_wnioskodawca[[#This Row],[% poziom wsparcia]]/100),2)","v":0}]
["Suma",null,null,null,null,null,"Razem",{"$f":"SUM(H5:H34)","v":0},null,{"$f":"SUM(J5:J34)","v":0},{"$f":"SUM(K5:K34)","v":0},null,{"$f":"SUM(M5:M34)","v":0}]

{"sheet":"Koszty pośrednie","index":9,"n_rows":6,"n_cols":8,"rows_kept":6,"cut":false,"hidden":false,"merged":[[0,0,0,7],[1,0,1,7],[2,0,2,7]]}
["Koszty pośrednie"]
["Uwaga: pola oznaczone kolorem żółtym są polami nieedytowalnymi."]
["W tabeli poniżej należy wypełnić jedynie dane w kolumnie \"Procentowy poziom wsparcia\" i kolumnie \"Opis kosztów pośrednich\".\nUwaga: dane liczbowe uzyskanie w niniejszej tabeli w wierszu \"Razem\" w kolumnach: \"Koszty pośrednie wartość ogółem \", \"Koszty pośrednie wydatki kwalifikowalne \" oraz \"Dofinansowanie\" należy przenieść do zadania \"Koszty pośrednie\" znajdującego się w sekcji \"BUDŻET PROJEKTU\" w formularzu wniosku w WOD2021 zastępując wartości liczbowe wyliczone automatycznie przez system WOD2021 w tej sekcji dla wnioskodawcy."]
["Zadanie","Wartość ogółem","Wydatki kwalifikowalne","Koszty pośrednie - wartość ogółem","Koszty pośrednie - wydatki kwalifikowalne ","Procentowy poziom wsparcia","Dofinansowanie ","Opis kosztów pośrednich"]
["\"KOSZTY POŚREDNIE\"","Wiersze wypełniane przez arkusz na podstawie danych podanych w arkuszu \"Specyfikacja kosztów\".","Wiersze wypełniane przez arkusz na podstawie danych podanych w arkuszu \"Specyfikacja kosztów\".","Wiersze wypełniane przez arkusz na podstawie danych podanych we wcześniejszych kolumnach.","Wiersze wypełniane przez arkusz na podstawie danych podanych przez wnioskodawcę we wcześniejszych kolumnach.","Należy podać, z dokładnością do dwóch miejsc po przecinku, procentowy poziom wsparcia (dofinansowania) o jaki wnioskodawca zamierza ubiegać się w odniesieniu do kosztów pośrednich. Uwaga: podany poziom wsparcia nie może być wyższy niż dopuszczalny procentowy poziom wsparcia, o którym mowa w Regulaminie wyboru projektu. ","Wiersze wypełniane przez arkusz na podstawie danych podanych we wcześniejszych kolumnach.","Należy  wskazać rodzaje kosztów, które wnioskodawca planuje sfinansować w ramach kosztów pośrednich. Katalog kosztów pośrednich znajduje się w Regulaminie wyboru projektów. Koszty rozliczone metodą ryczałtową są traktowane jako wydatki poniesione. W ramach projektu beneficjent nie ma obowiązku zbierania ani opisywania dokumentów księgowych w celu potwierdzenia poniesienia wydatków, które zostały rozliczone jako koszty pośrednie.\nKoszty rozliczane metodą ryczałtową w ramach kosztów pośrednich nie mogą zostać wykazane w ramach innych kategorii kosztów projektu."]
["Razem",{"$f":"Specyfikacja_wnioskodawca[[#Totals],[Wartość ogółem zł]]","v":0},{"$f":"Specyfikacja_wnioskodawca[[#Totals],[Wydatki kwalifikowalne  zł]]","v":0},{"$f":"ROUNDDOWN(Tabela20[[#This Row],[Wartość ogółem]]*0.07,2)","v":0},{"$f":"ROUNDDOWN(Tabela20[[#This Row],[Wydatki kwalifikowalne]]*0.07,2)","v":0},null,{"$f":"ROUNDDOWN(Tabela20[[#This Row],[Koszty pośrednie - wydatki kwalifikowalne ]]*Tabela20[[#This Row],[Procentowy poziom wsparcia]],2)","v":0}]

{"sheet":"Usługi IOB dla MŚP","index":10,"n_rows":33,"n_cols":4,"rows_kept":33,"cut":false,"hidden":false,"merged":[]}
[null,"Usługi inkubacyjne świadczone dla MŚP"]
[null,"Instrukcja wypełniania tabeli (kliknij)"]
["LP","Nazwa usługi inkubacyjnej","Opis usług inkubacyjnych","Liczba przedsiębiorstw MŚP"]
[{"$f":"ROW()-3","v":1}]
[{"$f":"ROW()-3","v":2}]
[3]
[4]
[5]
[6]
[7]
[8]
[9]
[10]
[11]
[12]
[13]
[14]
[15]
[16]
[17]
[18]
[19]
[20]
[21]
[22]
[23]
[24]
[25]
[26]
[27]
[28]
[29]
[30]

{"sheet":"Pomocniczy","index":11,"n_rows":47,"n_cols":1,"rows_kept":47,"cut":false,"hidden":true,"merged":[]}
["411 Gromadzenie i przechowywanie danych, dygitalizaja zasobów, chmury"]
["412 Aplikacje i analizy potencjału rynku"]
["413 Projektowanie, zarządzanie, optymalizacja i sterowanie procesami produkcyjnymi"]
["414 Technologie i systemy służące świadczeniu usług dla biznesu"]
["415 Technologie i inteligentne systemy telekomunikacyjne i teleinformatyczne, w tym internet rzeczy"]
["416 Systemy służące sprzedaży oraz obsłudze klienta, platformy e-zakupowe, telemarketing"]
["417 Systemy i usługi płatnicze i finansowe (e-commerce)"]
["421 Systemy wykorzystywane w transporcie, w tym systemy sterowania ruchem"]
["422 Inteligentne bezzałogowe statki latające"]
["423 Systemy i urządzenia sterowane numerycznie"]
["431 Bezpieczeństwo i systemy ochrony cyberprzestrzeni"]
["432 Cyberbezpieczeństwo systemów energetycznych"]
["433 Systemy przewidywania i zapobiegania awariom"]
["434 Przestrzenne systemy nawigacje i monitorowania, w tym rozwiązania stosowane w obiektach zamkniętych"]
["435 Zintegrowane systemy zarządzania budynkami"]
["436 Systemy bezinwazyjnego pomiaru i detekcji"]
["437 Projektowanie, w tym projektowanie wnętrz i zabudowy"]
["438 Rzeczywistość wirtualna i technologie symulacyjne"]
["441 Wykorzystanie TIK na rzecz rozwoju edukacji w obszarze umiejętności cyfrowych w celu stworzenia warunków do edukacji zdalnej (na odległość)"]
["442 Innowacyjne produkty i technologie stosowane w upowszechnianiu kultury i dziedzictwa narodowego oraz zabezpieczaniu zbiorów i ich konserwacji"]
["443 Innowacyjne produkty i technologie stosowane w sporcie, rozrywce, reklamie i multimediach"]
["444 Rozwój oprogramowania i technologii związanych ze sztuczną inteligencją i uczeniem maszynowym"]
["211 Efektywne zarządzanie zasobami obejmujące ich przetwarzanie, produkcję, sprzedaż, użytkowanie i zagospodarowanie odpadów"]
["212 Wykorzystywanie biomasy do produkcji materiałów zastępujących inne nieodnawialne surowce"]
["213 Obniżanie emisyjności przemysłu"]
["214 Technologie i systemy przeciwdziałające zagrożeniom środowiskowym oraz monitoring poziomu zanieczyszczeń"]
["215 Biodegradowalność surowców oraz optymalizacja zagospodarowania odpadów poprodukcyjnych (technologie, procesy, produkty)"]
["216 Zero waste food"]
["217 Biotechnologie w inżynierii i ochronie środowiska"]
["218 Innowacyjne systemy, układy, sensory i detektory elektroniczne i fotoniczne do zastosowań w ochronie środowiska"]
["219 Metody ochrony i rekultywacji gleb oraz oczyszczanie ścieków"]
["220 Oszczędna i efektywna gospodarka wodna"]
["221 Czyste technologie węglowe"]
["222 Substancje bioaktywne przeznaczone do wytwarzania środków ochrony roślin, nawozów i leków, w tym leków weterynaryjnych"]
["223 (Bio)polimery i (bio)tworzywa"]
["231 Zwiększenie wykorzystania odnawialnych źródeł energii"]
["232 Energia z odpadów i paliw alternatywnych"]
["233 Poprawa efektywności konwersji energii"]
["234 Innowacyjne systemy wytwarzania, zarządzania, przesyłu, dystrybucji energii"]
["235 Inteligentne rozwiązania w sieciach elektroenergetycznych"]
["236 Metody i technologie magazynowania energii"]
["237 Smart mettering i inteligentne liczniki energii"]
["238 Nowoczesne systemy ciepłownicze i chłodnicze"]
["239 Systemy izolacyjne sprzyjające energooszczędności"]
["240 Systemy dystrybucji energii w budynkach"]
["241 Inteligentne, energooszczędne systemy oświetleniowe"]
["242 Rozwój infrastruktury sprzyjającej elektromobilności"]

{"sheet":"Wpływ projektu","index":12,"n_rows":9,"n_cols":1,"rows_kept":9,"cut":false,"hidden":false,"merged":[]}
["1. Wpływ projektu na rozwój regionalnych inteligentnych specjalizacji"]
["Należy wskazać czy wnioskodawca zaplanował skierować swoją ofertę w zakresie kompleksowych usług inkubacji do MŚP, prowadzących główną działalność gospodarczą w obszarze/obszarach wpisujących się w  inteligentne specjalizacje województwa lubelskiego (minimum jedną z wymienionych poniżej), zgodnych z Regionalną Strategią Innowacji Województwa Lubelskiego do 2030 roku (RSI WL) tj. :\n•\tŻywność wysokiej jakości,\n•\tZielona gospodarka,\n•\tZdrowe społeczeństwo,\n•\tCyfrowe społeczeństwo,\n•\tTechnologie materiałowe, procesy produkcyjne i logistyczne."]
[]
["W wierszu poniżej należy określić procentową wartość przedsiębiorstw, które skorzystają z usług kompleksowej inkubacji w ramach projektu oraz które jednocześnie prowadzą główną działalność gospodarczą w obszarze/obszarach wpisujących się w inteligentne specjalizacje województwa lubelskiego."]
[]
["2. Usługi ukierunkowane na podnoszenie aktywności kobiet"]
["Należy wskazać czy usługą inkubacji zaplanowaną w ramach projektu, zostaną objęte MŚP z województwa lubelskiego, które są prowadzone przez kobiety, tzn. właścicielem lub właścicielami/udziałowcami będą wyłącznie kobiety oraz osobą/osobami upoważnionymi do reprezentowania podmiotu będą wyłącznie kobiety. \n"]
[]
["W wierszu poniżej należy określić procentową wartość przedsiębiorstw, które skorzystają z usług kompleksowej inkubacji w ramach projektu oraz które są prowadzone przez kobiety."]

{"sheet":"Spójna komunikacja","index":13,"n_rows":7,"n_cols":1,"rows_kept":7,"cut":false,"hidden":false,"merged":[]}
["Zachowanie spójnej komunikacji dotyczącej oferty usług wnioskodawcy i usług otoczenia biznesu."]
["Zachowanie spójnej komunikacji dotyczącej oferty usług wnioskodawcy należy rozumieć jako przekazywanie wszystkim zainteresowanym w jasny i spójny sposób informacji na temat zakresu świadczonych usług doradczych i szkoleniowych w zakresie innowacji, zasad skorzystania z oferty i korzyści wynikających z wdrażania innowacji. \nSpójna komunikacja powinna zawierać następujące elementy:\n• jasne i zrozumiałe komunikaty - oferta opisana prostym językiem;\n• komunikowanie korzyści, a nie tylko usług;\n• monitoring i aktualizacja przekazu- komunikacja powinna być dostosowana do zmieniających się potrzeb rynku.\nZapewnienie spójnej komunikacji dotyczącej oferty usług otoczenia biznesu należy rozumieć jako wskazanie, że wnioskodawca posiada:\n• znajomość aktualnej oferty IOB/Ośrodków Innowacji (OI) działających w województwie lubelskim tak, aby skutecznie doradzać przedsiębiorcy, gdzie powinien skierować się po konkretną usługę doradczą, badawczą, innowacyjną czy szkoleniową w sytuacji braku posiadania przez danego wnioskodawcę danej usługi w ofercie;\n• znajomość aktualnej oferty najważniejszych/największych IOB/OI w kraju w zakresie branżowym (w jakim działalność prowadzi wnioskodawca) i umiejętność przekierowania wnioskodawcy do właściwej IOB/OI, to jest w szczególności wskazanie, gdzie przedsiębiorca może skorzystać z potrzebnej infrastruktury;\n• możliwość przekazania kontaktów i danych do IOB/OI działających w województwie lubelskim oraz wsparcia przedsiębiorcy w nawiązaniu kontaktu z innymi IOB/OI."]
["W związku z ubieganiem się o dofinansowanie projektu złożonego w ramach programu Fundusze Europejskie dla Lubelskiego 2021-2027 oświadczam, że w okresie realizacji i trwałości projektu zachowam spójną komunikację w zakresie świadczonych usług oraz zapewnię spójną komunikację dotyczącą oferty  usług otoczenia biznesu.\nW przypadku udzielenia odpowiedzi negatywnej (wybór opcji \"NIE\") projekt nie kwalifikuje się do wsparcia."]
[]
["W polu poniżej należy opisać  w jaki sposób wnioskodawca planuje przekazywać informacje dotyczące oferty usług doradczych i szkoleniowych, które będzie świadczył po  zrealizowaniu niniejszego projektu."]
[]
["W polu poniżej należy krótko scharakteryzować  ofertę IOB/Ośrodków Innowacji (OI) działających w województwie lubelskim w zakresie usług doradczych, badawczych i innowacyjnych oraz ofertę najważniejszych/największych IOB/OI w kraju w zakresie branżowym w jakim działalność prowadzi lub planuje prowadzić w wyniku realizacji niniejszego projektu wnioskodawca.  Należy też wskazać w jaki sposób wnioskodawca będzie udzielał informacji w zakresie oferty innych IOB/OI zainteresowanym przedsiębiorcom (np. doradztwo indywidualne i przekazania kontaktów i danych do IOB/OI, zamieszczenie informacji/danych kontaktowych  na  stronie  internetowej wnioskodawcy, pośrednictwo w nawiązywaniu kontaktów z innymi IOB/OI) oraz w jakim zakresie."]

{"sheet":"Doświadczenie","index":14,"n_rows":20,"n_cols":4,"rows_kept":20,"cut":false,"hidden":false,"merged":[]}
["1. Doświadczenie wnioskodawcy","2. Doświadczenie wnioskodawcy","2. Doświadczenie wnioskodawcy2","3. Doświadczenie wnioskodawcy"]
["W polu poniżej należy opisać doświadczenie wnioskodawcy w zakresie świadczenia usług inkubacyjnych na rzecz przedsiębiorstw sektora MŚP, posiadających siedzibę lub miejsce prowadzenia działalności na terenie województwa lubelskiego.\n\nOpis powinien zawierać następujące elementy\n1. Okres świadczenia usług:\na) Podaj dokładną datę rozpoczęcia i zakończenia (lub trwania) świadczenia usług inkubacyjnych.\nb) Doświadczenie musi obejmować minimum 12 miesięcy liczone wstecz od daty złożenia wniosku o dofinansowanie.\nc) Wskaż, czy działalność ta była prowadzona w sposób ciągły.\n\n2. Rodzaje świadczonych usług inkubacyjnych\na) Opisz, jakie usługi były świadczone w ramach inkubacji, w szczególności:\nczy wchodziły w zakres infrastruktury inkubacyjnej (np. udostępnianie powierzchni biurowej, wirtualne biuro),\nczy obejmowały usługi merytoryczne (np. doradztwo prawne, księgowe, ICT, szkolenia, mentoring),\nczy usługi były kompleksowe i zorganizowane.\n\n3. Liczba i profil obsłużonych przedsiębiorstw\na) Wskaż liczbę MŚP z województwa lubelskiego, które skorzystały z usług inkubacyjnych.\nb) Opisz pokrótce ich profil (np. branże, etap rozwoju, skala działalności).\n\n4. Forma potwierdzenia doświadczenia\nW celu potwierdzenia powyższego doświadczenia, do wniosku należy załączyć:\na) kopie umów cywilnoprawnych lub handlowych zawartych z przedsiębiorstwami z woj. lubelskiego (np. umowy najmu, świadczenia usług doradczych, współpracy),\nb) faktury VAT dokumentujące sprzedaż usług inkubacyjnych (lub rachunki w przypadku działalności nierejestrowanej),\nc) inne dokumenty potwierdzające ciągłość i rzeczywisty charakter świadczonych usług (np. raporty z realizacji, referencje, karty usług)."]
[]
["2. Doświadczenie kadry wnioskodawcy","Kolumna1",null,"Kolumna2"]
["W wierszu poniżej należy wskazać, czy wnioskodawca zaangażuje kadrę posiadającą minimum dwuletnie praktyczne doświadczenie w świadczeniu usług szkoleniowych lub doradczych dla przedsiębiorstw. "]
[]
["Jeżeli w pytaniu powyżej wybrano opcję \"TAK\", należy wypełnić poniższą tabelę.\nPoniżej należy wpisać imię i nazwisko osoby posiadającej minimalne 2-letnie doświadczenie, która będzie zaangażowana do świadczenia usług realizowanych w projekcie.\nNastępnie w kolumnie obok należy opisać posiadane przez daną osobę doświadczenie w zakresie świadczeniu usług szkoleniowych lub doradczych dla przedsiębiorstw, poświadczone dokumentami.\nW kolumnie \"Współpraca z wnioskodawcą\" należy wskazać od kiedy dana osoba jest zatrudniona przez wnioskodawcę lub współpracuje w oparciu o umowę cywilnoprawną lub B2B z wnioskodawcą w okresie co najmniej sześciu miesięcy poprzedzających złożenie wniosku o dofinasowanie.\nW kolumnie \"Planowane zaangażowanie w projekcie\" należy zadeklarować czy wskazana osoba będzie zaangażowana w świadczenie usług inkubacyjnych.\nW tabeli istnieje możliwość dodawania wierszy, przy czym należy zwrócić uwagę, aby wiersze były wstawiane w tabeli, a nie pod nią."]
["Imię i nazwisko ","Posiadane doświadczenie","Współpraca z wnioskodawcą","Planowane zaangażowanie w projekcie"]
[]
[]
[]
[]
[]
[]
[]
[]
["3. Współpraca ponadregionalna, transgraniczna i ponadnarodowa"]
["W wierszu poniżej należy wskazać, czy projekt obejmuje elementy współpracy ponadregionalnej, transgranicznej lub ponadnarodowej.\nWspółpraca ponadregionalna oznacza współpracę z podmiotami z innych województw.\nWspółpraca transgraniczna oznacza współpracę z podmiotami z obszarów przygranicznych Rzeczpospolitej Polskiej, bezpośrednio przylegających do granicy województwa lubelskiego (tj. przygranicznych obszarach Ukrainy lub Białorusi).\nWspółpraca ponadnarodowa oznacza współpracę z podmiotami z zagranicy (z wyłączeniem obszarów transgranicznych).\nZa współpracę ponadregionalną, transgraniczną lub ponadnarodową nie jest uznawana współpraca z osobami lub podmiotami, wpisanymi na listę osób wobec których są stosowane środki określone w ustawie z dnia 13 kwietnia 2022 r. o szczególnych rozwiązaniach w zakresie przeciwdziałania wspieraniu agresji na Ukrainę oraz służących ochronie bezpieczeństwa narodowego, prowadzona w okresie stosowania tych środków."]
[]
["Jeżeli w pytaniu powyżej wybrano opcję \"TAK\", należy opisać elementy tej współpracy np.: świadczenie usług doradczych dla inkubowanych MŚP w zakresie nawiązania kontaktów z inwestorami/ekspertami branżowymi/innymi przedsiębiorstwami posiadającymi siedzibę poza województwem lubelskim czy doradztwa w zakresie internacjonalizacji działalności gospodarczej.\n"]

{"sheet":"Kumulacja pomocy","index":15,"n_rows":21,"n_cols":1,"rows_kept":21,"cut":false,"hidden":false,"merged":[]}
["Oświadczenie dotyczące kumulacji pomocy"]
["W związku z ubieganiem się o dofinansowanie projektu złożonego w ramach programu Fundusze Europejskie dla Lubelskiego 2021-2027 oświadczam, że (należy wybrać odpowiedź w poniższym wierszu z listy):"]
[]
["o takim samym lub podobnym zakresie rzeczowym w ramach wdrażanych przez LAWP Działań lub w ramach innego programu finansowanego ze środków publicznych "]
["oraz (należy wybrać odpowiedź w poniższym wierszu z listy):"]
[]
["Jednocześnie, w związku z ubieganiem się o dofinansowanie projektu, złożonego w ramach programu Fundusze Europejskie dla Lubelskiego 2021-2027 oświadczam, że w odniesieniu do kosztów kwalifikowalnych ujętych w projekcie, pokrywających się częściowo lub w całości (należy wybrać odpowiedź w poniższym wierszu z listy):"]
[]
["W przypadku gdy wnioskodawca przedkładał wniosek o dofinansowanie o takim samym lub podobnym zakresie do niniejszego projektu, będącego przedmiotem oceny, w celu uzyskania finansowania ze środków publicznych, należy złożyć szczegółowe wyjaśnienia na temat tego wniosku m.in. numer wniosku, zakres wniosku, informacje o pokrywających się kosztach."]
[]
[]
[]
[]
[]
[]
[]
[]
["oświadczam, że uzyskałem dofinansowanie na realizację projektu o takim samym lub podobnym zakresie, o którym mowa powyżej."]
["oświadczam, że nie uzyskałem dofinansowania na realizację projektu o takim samym lub podobnym zakresie, o którym mowa powyżej."]
["została mi przyznana inna pomoc państwa (w tym pomoc de minimis)."]
["nie została  mi przyznana inna pomoc państwa (w tym pomoc de minimis)."]

{"sheet":"Tajemnica przedsiębiorstwa","index":16,"n_rows":4,"n_cols":1,"rows_kept":4,"cut":false,"hidden":false,"merged":[]}
["Oświadczenie dotyczące tajemnicy przedsiębiorstwa"]
["W związku z ubieganiem się o dofinansowanie projektu oświadczam, że informacje zawarte we wniosku posiadają wartość gospodarczą i są prawnie zastrzeżone jako informacje poufne lub podjęto w przedsiębiorstwie niezbędne działania w celu zachowania ich poufności oraz nie są informacjami powszechnie dostępnymi i w związku z tym stanowią tajemnicę przedsiębiorstwa w rozumieniu art. 11 ust. 4 ustawy z dnia 16 kwietnia 1993 r. o zwalczaniu nieuczciwej konkurencji. Wyrażam zgodę na udostępnie ww. danych wyłącznie, jeżeli konieczność ich udostępnienia będzie wynikać z przepisów obowiązującego prawa, w niezbędnym do powyższego zakresie. Jednocześnie wyrażam zgodę na wykorzystanie ww. informacji w celu wykonywania czynności niezbędnych do oceny dokumentacji aplikacyjnej, rozliczenia oraz kontroli projektu."]
[]
["W polu poniżej, należy wskazać punkty wniosku oraz załącznikach w których zawarto informacje stanowiące prawnie chronioną tajemnicę przedsiębiorstwa."]

{"sheet":"Oświadczenia","index":17,"n_rows":20,"n_cols":2,"rows_kept":20,"cut":false,"hidden":false,"merged":[]}
["Oświadczenia wnioskodawcy","Potwierdzam złożenie oświadczenia"]
["Zakładka Oświadczenia wnioskodawcy służy do potwierdzenia przez wnioskodawcę prawdziwości zawartych danych we wniosku i załącznikach (stanowiących jego integralną część) oraz przyjęcia pełnej odpowiedzialności za realizację projektu dofinansowanego z funduszy europejskich i wszystkich konsekwencji wynikających z tego faktu, co odbywa się poprzez zapoznanie się i zaakceptowanie każdego z poniższych warunków realizacji projektu w ramach programu Fundusze Europejskie dla Lubelskiego 2021-2027, poprzez wybór opcji \"TAK\" w kolumnie \"Potwierdzam złożenie oświadczenia\" (brak wyboru opcji \"TAK\" jest równoznaczny z brakiem złożenia danego oświadczenia przez wnioskodawcę)."]
["Oświadczam, że dane zawarte we wniosku o dofinansowanie złożonym w WOD2021 są zgodne z rzeczywistym stanem faktycznym i prawnym."]
["Oświadczam, że dane zawarte w niniejszym Biznes Planie część opisowa oraz wszystkich pozostałych załącznikach składanych wraz z wnioskiem o dofinansowanie w WOD2021 są zgodne ze stanem faktycznym i prawnym."]
["Oświadczam, że jestem świadomy/świadoma odpowiedzialności karnej, o której mowa w art. 233 § 1 ustawy z dnia 6 czerwca 1997 r. Kodeks karny, za podanie fałszywych danych lub złożenie fałszywych oświadczeń, w ramach dokumentacji niezbędnej do oceny projektu lub objęcia go dofinansowaniem."]
["Oświadczam, że jestem świadomy/świadoma odpowiedzialności karnej, za przedkładanie podrobionych, przerobionych, poświadczających nieprawdę albo nierzetelnych dokumentów oraz za składanie nierzetelnych, pisemnych oświadczeń co do okoliczności o istotnym znaczeniu dla uzyskania wsparcia, a także odpowiedzialności karnej za niepowiadomienie LAWP o powstaniu sytuacji mogącej mieć wpływ na wstrzymanie albo ograniczenie wysokości udzielonego wsparcia."]
["Oświadczam, że nie podlegam wykluczeniu z możliwości ubiegania się o wsparcie z funduszy strukturalnych na podstawie art. 207 ust. 4 Ustawy z dnia 27 sierpnia 2009 r. o finansach publicznych, art. 12 ust. 1 pkt 1 Ustawy z dnia 15 czerwca 2012 r. o skutkach powierzenia wykonywania pracy cudzoziemcom przebywającym wbrew przepisom na terenie Rzeczypospolitej Polskiej, art. 9 ust. 1 pkt 2a Ustawy z dnia 28 października 2002 r. o odpowiedzialności podmiotów zbiorowych za czyny zabronione pod groźbą kary."]
["Oświadczam, że w stosunku do członków organu zarządzającego wnioskodawcy nie toczy się postępowanie karne lub karne skarbowe za przestępstwo składania fałszywych zeznań, przekupstwa, przeciwko mieniu, wiarygodności dokumentów, obrotowi pieniędzmi i papierami wartościowymi, obrotowi gospodarczemu, systemowi bankowemu albo inne związane z wykonywaniem działalności gospodarczej lub popełnione w celu osiągnięcia korzyści majątkowych, w związku z dofinansowaniem, które zostało udzielone ze środków publicznych na realizację projektu temu wnioskodawcy, podmiotowi powiązanemu z nim osobowo lub kapitałowo lub członkowi organów zarządzających tego wnioskodawcy lub podmiotu."]
["Oświadczam, że nie ciąży na mnie obowiązek zwrotu pomocy wynikający z decyzji Komisji Europejskiej uznającej taką pomoc za niezgodną z prawem oraz z rynkiem wewnętrznym."]
["Oświadczam, że zgodnie z art. 66 Rozporządzenia Parlamentu Europejskiego i Rady (UE) nr 2021/1060 z dnia 24 czerwca 2021 r. projekt nie dotyczy przeniesienia produkcji oraz spełnia warunki, o których mowa w art. 73 ust. 2 lit. i ww. Rozporządzenia."]
["Oświadczam, że nie zostałem wykluczony z możliwości ubiegania się o dofinansowanie na podstawie Ustawy z dnia 13 kwietnia 2022 r. o szczególnych rozwiązaniach w zakresie przeciwdziałania wspieraniu agresji na Ukrainę oraz służących ochronie bezpieczeństwa narodowego."]
["Oświadczam, że projekt nie dotyczy rodzajów działalności wykluczonych, o których mowa w art. 7 ust. 1 Rozporządzenia Parlamentu Europejskiego i Rady (UE) 2021/1058 z dnia 24 czerwca 2021 r. w sprawie Europejskiego Funduszu Rozwoju Regionalnego i Funduszu Spójności."]
["Oświadczam, że zapoznałem/zapoznałam się z Regulaminem wyboru projektów i akceptuję jego zasady."]
["Oświadczam, że projekt jest zgodny z właściwymi przepisami prawa unijnego i polskiego."]
["Oświadczam, że nie pozostaję pod zarządem komisarycznym, nie znajduje się w toku likwidacji lub postępowania upadłościowego."]
["Oświadczam, że nie zalegam w opłacaniu składek na ubezpieczenie społeczne, ubezpieczenie zdrowotne, Fundusz Pracy i Fundusz Gwarantowanych Świadczeń Pracowniczych oraz podatków i innych należności publicznoprawnych."]
["Wyrażam zgodę na udostępnienie niniejszego wniosku podmiotom dokonującym ewaluacji, w tym w szczególności na udzielanie informacji na potrzeby ewaluacji przeprowadzanych przez Instytucję Zarządzającą, Instytucję Pośredniczącą lub inną uprawnioną instytucję lub jednostkę organizacyjną z zastrzeżeniem zapewnienia ochrony informacji w nim zawartych."]
["Wyrażam zgodę na kontrolę przeprowadzaną przez LAWP w miejscu realizacji projektu i/lub siedzibie wnioskodawcy oraz udostępnienie niezbędnych dokumentów."]
["Oświadczam, że projekt w zakresie którego wsparcie stanowi pomoc de minimis nie dotyczy rodzajów działalności wykluczonych, o których mowa w art. 1 ust. 1 Rozporządzenia Komisji (UE) Nr 2023/2831 z dnia 13 grudnia 2023 r. w sprawie stosowania art. 107 i 108 Traktatu o funkcjonowaniu Unii Europejskiej do pomocy de minimis."]
["Oświadczam, że  zapoznałem się z klauzulą informacyjną dotyczącą przetwarzania danych osobowych, określoną w Regulaminie wyboru projektów."]

{"sheet":"słownik_wysoka techniki","index":18,"n_rows":103,"n_cols":3,"rows_kept":103,"cut":false,"hidden":true,"merged":[]}
[]
[null,null,"Przetwórstwo przemysłowe"]
[null,null,"21 Produkcja podstawowych substancji farmaceutycznych oraz leków i pozostałych wyrobów farmaceutycznych"]
[null,null,"26 Produkcja komputerów, wyrobów elektronicznych i optycznych"]
[null,null,"30.3 Produkcja statków powietrznych, statków kosmicznych i podobnych maszyn"]
[]
[null,null,"Usługi"]
[null,null,"59 Działalność związana z produkcją filmów, nagrań wideo, programów telewizyjnych, nagrań dźwiękowych i muzycznych"]
[null,null,"60 Nadawanie programów ogólnodostępnych i abonamentowych"]
[null,null,"61 Telekomunikacja"]
[null,null,"62 Działalność związana z oprogramowaniem i doradztwem w zakresie informatyki oraz działalność powiązana"]
[null,null,"63 Działalność usługowa w zakresie informacji"]
[null,null,"72 Badania naukowe i prace rozwojowe"]
[]
[null,null,"Sprzęt lotniczy"]
[null,null,"792.1 Śmigłowce"]
[null,null,"792.2 Samoloty i pozostałe statki powietrzne (inne niż śmigłowce), o napędzie mechanicznym, o masie własnej nieprzekraczającej 2 000 kg"]
[null,null,"792.3 Samoloty i pozostałe statki powietrzne (inne niż śmigłowce), o napędzie mechanicznym, o masie wła\u0002snej przekraczającej 2 000 kg, ale nieprzekraczającej 15 000 kg"]
[null,null,"792.4 Samoloty i pozostałe statki powietrzne (inne niż śmigłowce), o napędzie mechanicznym, o masie własnej przekraczającej 15 000 kg"]
[null,null,"792.5 Statki kosmiczne (włączając sztuczne satelity) i pojaz\u0002dynośne statków kosmicznych"]
[null,null,"792.91 Śmigła i wirniki oraz ich części"]
[null,null,"792.93 Podwozia i ich części"]
[null,null,"714 (714.89, 714.99) Silniki i siłowniki, nieelektryczne (inne niż te objęte grupami 712, 713 i 718); części do tych silników i siłowników, gdzie indziej niewymienione ani niewłączone"]
[null,null,"874.11 Kompasy, busole morskie; pozostałe przyrządy i urządzenia nawigacyjne"]
[]
[null,null,"Komputery – maszyny biurowe"]
[null,null,"751.94 Maszyny, które wykonują dwie lub więcej funkcji drukowania, kopiowania lub transmisji telefaksowej, nadające się podłączenia do maszyn do automatycz\u0002nego przetwarzania danych lub do sieci"]
[null,null,"751.95 Pozostałe, nadające się podłączenia do maszyn do automatycznego przetwarzania danych lub do sieci"]
[null,null,"759.97 Części i akcesoria do maszyn objętych grupą 752"]
[null,null,"752 Maszyny do automatycznego przetwarzania danych i urządzenia do nich; czytniki magnetyczne lub optyczne, maszyny do przenoszenia danych na nośniki danych w formie zakodowanej i maszyny do przetwarzania takich danych, gdzie indziej niewymienione ani niewłączone"]
[]
[null,null,"Elektronika – telekomunikacja"]
[null,null,"763.31 Aparatura uruchamiana monetami, banknotami, kartami bankowymi, żetonami lub innymi środkami płatniczymi"]
[null,null,"763.8 Aparatura wideo do zapisu i odtwarzania obrazu i dźwięku, nawet wyposażona w urządzenie do odbioru sygnałów wizyjnych i dźwiękowych (tunery wideo)"]
[null,null,"764 (764.93, 764.99) Sprzęt telekomunikacyjny, gdzie indziej niewymieniony ani niewłączony, i części, gdzie indziej niewymienione ani niewłączone, i akcesoria aparatury objętej działem 76"]
[null,null,"772.2 Obwody drukowane"]
[null,null,"772.61 Tablice, panele (włączając panele do sterowania cyfrowego), konsole, pulpity, szafy i pozostałe układy wspornikowe, wyposażone przynajmniej w dwie lub więcej aparatur objętych podgrupą 772.4 lub 772.5, do elektrycznego sterowania lub rozdziału energii elektrycznej (włączając układy zawierające przyrządy lub aparaturę, objęte grupami 774, 881, 884 lub działem 87, ale z wyłączeniem aparatury połączeniowej objętej podgrupą 764.1) do napięć nieprzekraczających 1 000 V"]
[null,null,"773.18 Kable z włókien światłowodowych"]
[null,null,"776.25 Lampy mikrofalowe (z wyłączeniem lamp sterowanych potencjałem siatki)"]
[null,null,"776.27 Pozostałe lampy katodowe"]
[null,null,"776.3 Diody, tranzystory i podobne urządzenia półprzewodnikowe; światłoczułe urządzenia półprzewodnikowe (włączając fotoogniwa, nawet zmontowane w moduły lub tworzące panele); diody świecące (elektroluminescencyjne)"]
[null,null,"776.4 Elektroniczne układy scalone"]
[null,null,"776.8 Kryształy piezoelektryczne, oprawione; części elementów elektronicznych objętych grupą 776, gdzie indziej niewymienione ani niewłączone"]
[null,null,"898.44 Nośniki optyczne"]
[null,null,"898.46 Nośniki półprzewodnikowe"]
[]
[null,null,"Środki farmaceutyczne"]
[null,null,"541.3 Antybiotyki, niepakowane jako leki objęte grupą 542"]
[null,null,"541.5 Hormony, prostaglandyny, tromboksany i leukotrieny, naturalne lub syntetyczne; ich pochodne i analogi strukturalne, włącznie z polipeptydami o zmodyfikowanym łańcuchu, stosowane głównie jako hormony"]
[null,null,"541.6 Glikozydy; gruczoły i pozostałe organy, i ich ekstrakty; antysurowice, szczepionki i podobne produkty"]
[null,null,"542.1 Leki zawierające antybiotyki lub ich pochodne"]
[null,null,"542.2 Leki zawierające hormony lub pozostałe produkty objęte podgrupą 541.5, ale niezawierające antybiotyków"]
[]
[null,null,"5. Aparatura naukowo-badawcza"]
[null,null,"774 Aparatura elektrodiagnostyczna do zastosowań medycznych, chirurgicznych, stomatologicznych lub weterynaryjnych i aparatura radiologiczna"]
[null,null,"871 Przyrządy i aparatura, optyczne, gdzie indziej niewymienione ani niewyłączone"]
[null,null,"872.11 Wiertarki dentystyczne, nawet na wspólnej podstawie z innym sprzętem stomatologicznym"]
[null,null,"874 (874.11, 874.2) Przyrządy i aparatura, pomiarowa, kontrolna i analityczna, gdzie indziej niewymienione ani niewłączone"]
[null,null,"881.11 Aparaty fotograficzne (inne niż kinematograficzne)"]
[null,null,"881.21 Kamery kinematograficzne"]
[null,null,"884.11 Soczewki kontaktowe"]
[null,null,"884.19 Włókna optyczne i wiązki włókien optycznych, i kable światłowodowe; arkusze i płyty z materiałów polaryzujących; elementy optyczne nieoprawione, gdzie indziej niewymienione ani niewłączone"]
[null,null,"899.6 (899.65, 899.69) Urządzenia ortopedyczne (włączając kule, pasy chirurgiczne i przepuklinowe); szyny i pozostałe urządzenia do złamań; protezy; aparaty słuchowe i pozostałe urządzenia zakładane, noszone lub wszczepiane, mające na celu skorygowanie wady lub kalectwa"]
[]
[null,null,"Maszyny elektryczne"]
[null,null,"778.7 Maszyny i aparatura, elektryczne, wykonujące indywidualne funkcje, gdzie indziej niewymienione ani niewłączone; ich części"]
[null,null,"778.84 Elektryczna aparatura do sygnalizacji dźwiękowej lub wizualnej (na przykład dzwonki, syreny, tablice sygnalizacyjne, urządzenia alarmowe przeciwwłamaniowe lub przeciwpożarowe), inna niż ta objęta pozycją 778.34 lub 778.82"]
[null,null,"778.6 (778.61, 778.66, 778.69) Kondensatory elektryczne, stałe, nastawne lub strojeniowe"]
[]
[null,null,"Maszyny nieelektryczne"]
[null,null,"714.89 Pozostałe turbiny gazowe"]
[null,null,"714.99 Części do turbin gazowych objętych pozycją 714.89"]
[null,null,"718.7 Reaktory jądrowe i części do nich; sekcje paliwowe (kasety) do reaktorów jądrowych, nienapromieniowane"]
[null,null,"728.47 Maszyny i aparatura do rozdzielania izotopów, i części do nich, gdzie indziej niewymienione ani niewłączone"]
[null,null,"731.1 Obrabiarki do obróbki dowolnych materiałów przez usuwanie nadmiaru materiału za pomocą lasera lub innej wiązki świetlnej, lub fotonowej, metodą ultradźwiękową, elektroerozyjną, elektrochemiczną, za pomocą wiązki elektronów, wiązki jonowej lub łuku plazmowego"]
[null,null,"731.31 Tokarki poziome sterowane numerycznie"]
[null,null,"731.35 Pozostałe tokarki sterowane numerycznie"]
[null,null,"731.42 Pozostałe wiertarki, sterowane numerycznie"]
[null,null,"731.44 Pozostałe wiertarko-frezarki, sterowane numerycznie"]
[null,null,"731.51 Frezarki wspornikowe, sterowane numerycznie"]
[null,null,"731.53 Pozostałe frezarki, sterowane numerycznie"]
[null,null,"731.61 Szlifierki do płaszczyzn, sterowane numerycznie, z możliwością ustawiania położenia wzdłuż dowolnej osi z dokładnością do 0,01 mm lub wyższą"]
[null,null,"731.63 Pozostałe szlifierki, sterowane numerycznie, z możliwością ustawiania położenia wzdłuż dowolnej osi z dokładnością do 0,01 mm lub wyższą"]
[null,null,"731.65 Ostrzarki (szlifierki-ostrzarki narzędziowe), sterowane numerycznie"]
[null,null,"733.12 Giętarki, krawędziarki, maszyny do prostowania lub prostownice do blach (włączając prasy), sterowane numerycznie"]
[null,null,"733.14 Nożyce mechaniczne (włączając prasy), inne niż kombinowane dziurkarki i wykrawarki, sterowane numerycznie"]
[null,null,"733.16 Maszyny do przebijania, dziurkowania lub nacinania (włączając prasy), włączając kombinowane dziurkarki i wykrawarki, sterowane numerycznie"]
[null,null,"735.9 Części, gdzie indziej niewymienione ani niewłączone, i akcesoria nadające się do stosowania wyłącznie lub głównie do obrabiarek objętych grupami 731 i 733"]
[null,null,"737.33 Maszyny i aparatura, do oporowego zgrzewania metali, całkowicie lub częściowo automatyczne"]
[null,null,"737.35 Maszyny i aparatura, do spawania metali łukiem elektrycznym (włączając łuk plazmowy), całkowicie lub częściowo automatyczne"]
[]
[null,null,"Chemikalia"]
[null,null,"522.22 Selen, tellur, fosfor, arsen i bor"]
[null,null,"522.23 Krzem"]
[null,null,"522.29 Wapń, stront i bar; metale ziem rzadkich, skand, itr, metale alkaliczne lub metale ziem alkalicznych, nawet ich mieszaniny lub stopy"]
[null,null,"522.69 Pozostałe nieorganiczne zasady; pozostałe tlenki, wodorotlenki i nadtlenki metali"]
[null,null,"525 Materiały promieniotwórcze i pokrewne"]
[null,null,"531 Środki barwiące organiczne syntetyczne i laki barwnikowe i preparaty na ich bazie"]
[null,null,"574.33 Poli(tereftalan etylenu)"]
[null,null,"591 Środki owadobójcze, gryzoniobójcze, grzybobójcze, chwastobójcze, opóźniające kiełkowanie, regulatory wzrostu roślin, środki odkażające i podobne produkty, pakowane do postaci lub w opakowania do sprzedaży detalicznej, lub w postaci preparatów lub artykułów (na przykład taśm nasyconych siarką, knotów i świec oraz lepów na muchy)"]
[]
[null,null,"Uzbrojenie"]
[null,null,"891 Broń i amunicja"]

{"sheet":"słownik RIS","index":19,"n_rows":124,"n_cols":1,"rows_kept":124,"cut":false,"hidden":true,"merged":[]}
["TAK"]
["NIE"]
[]
[]
["I. ŻYWNOŚĆ WYSOKIEJ JAKOŚCI "]
["111 Innowacyjne działania na rzecz poprawy żyzności i produktywności gleb"]
["\n112 Wysokiej jakości materiał siewny, rozmnożeniowy i nasadzeniowy o zwiększonej odporności na choroby i szkodniki oraz warunki suszy rolniczej\n"]
["113 Bezpieczeństwo oraz poprawa jakości surowców roślinnych w zakresie stosowania nawozów i środków ochrony roślin\n"]
["114 Innowacyjne technologie i maszyny dla rolnictwa, w tym precyzyjnego"]
["121 Zdrowa żywność, w tym ekologiczna, tradycyjna i regionalna"]
["122 Innowacyjne sieci dystrybucji zdrowej, lokalnej i sezonowej żywności tzw.kooperatywy spożywcze"]
["123 Technologie przetwórstwa rolno-spożywczego ograniczające zużycie energii i wody"]
["124 Technologie podnoszące jakość, trwałość, funkcjonalność i bezpieczeństwo produktów pochodzenia roślinnego i zwierzęcego\n"]
["125 Zrównoważona produkcja, przetwórstwo i przechowalnictwo"]
["126 Innowacyjne systemy i oprogramowanie oraz inteligentne metody i narzędzia zarządzania i monitorowania przebiegu procesu produkcji oraz oceny jakości surowców i produktów gotowych                                                                                                                                                                                                                                                                                                                                                                                                                                                \n\n"]
["127 Rozwijanie narzędzi i nowoczesnych technik badawczych oraz markerów jakości żywności"]
["128 Innowacyjne systemy, układy, sensory i detektory elektroniczne i fotoniczne do zastosowań rolno-spożywczych "]
["129 Technologie cyfrowe, w tym rozwiązania informatyczne służące do gromadzenia i analizy danych, wspomagających procesy produkcyjne w sektorze rolno-spożywczym\n"]
["130 Technologie w zakresie transportu i przechowywania żywności"]
["131 Innowacyjne modele marketingowe w promocji żywności wysokiej jakości"]
[]
["II. ZIELONA GOSPODARKA"]
["211 Efektywne zarządzanie zasobami obejmujące ich przetwarzanie, produkcję, sprzedaż, użytkowanie i zagospodarowanie odpadów\n"]
["212 Wykorzystywanie biomasy do produkcji materiałów zastępujących inne nieodnawialne surowce"]
["213 Obniżanie emisyjności przemysłu"]
["214 Technologie i systemy przeciwdziałające zagrożeniom środowiskowym oraz monitoring poziomu zanieczyszczeń"]
["215 Biodegradowalność surowców oraz optymalizacja zagospodarowania odpadów poprodukcyjnych (technologie, procesy, produkty)\n"]
["216 Zero waste food"]
["217 Biotechnologie w inżynierii i ochronie środowiska"]
["218 Innowacyjne systemy, układy, sensory i detektory elektroniczne i fotoniczne do zastosowań w ochronie środowiska"]
["219 Metody ochrony i rekultywacji gleb oraz oczyszczanie ścieków"]
["220 Oszczędna i efektywna gospodarka wodna"]
["221 Czyste technologie węglowe"]
["222 Substancje bioaktywne przeznaczone do wytwarzania środków ochrony roślin, nawozów i leków, w tym leków weterynaryjnych \n"]
["223 (Bio)polimery i (bio)tworzywa"]
["231 Zwiększenie wykorzystania odnawialnych źródeł energii"]
["232 Energia z odpadów i paliw alternatywnych"]
["233 Poprawa efektywności konwersji energii"]
["234 Innowacyjne systemy wytwarzania, zarządzania, przesyłu, dystrybucji energii\n"]
["235 Inteligentne rozwiązania w sieciach elektroenergetycznych"]
["236 Metody i technologie magazynowania energii"]
["237 Smart mettering i inteligentne liczniki energii"]
["238 Nowoczesne systemy ciepłownicze i chłodnicze"]
["239 Systemy izolacyjne sprzyjające energooszczędności"]
["240 Systemy dystrybucji energii w budynkach"]
["241 Inteligentne, energooszczędne systemy oświetleniowe"]
["242 Rozwój infrastruktury sprzyjającej elektromobilności"]
[]
["III. ZDROWE SPOŁECZEŃSTWO"]
["311 Promocja zdrowego stylu życia, w tym rozwój branży wellness"]
["312 Profilaktyka chorób cywilizacyjnych i przeciwdziałanie zagrożeniom epidemiologicznym, w tym nowe innowacyjne metody leczenia i profilaktyki"]
["313 Turystyka, w tym turystyka zdrowotna i prozdrowotna"]
["314 Wykorzystanie zasobów (walorów) naturalnych regionu w funkcji uzdrowiskowej\n"]
["315 Rozwój usług i produktów skierowanych do osób starszych, z niepełnosprawnościami, sprzyjających utrzymaniu ich samodzielności i aktywności"]
["316 Nowe leki, innowacyjne suplementy diety, żywność funkcjonalna i środki spożywcze specjalnego przeznaczenia żywieniowego"]
["317 Innowacyjne kosmetyki"]
["318 Innowacyjne substancje biologicznie czynne jako potencjalne leki nowej generacji"]
["321 Diagnostyka i terapia genowa"]
["322 Medycyna spersonalizowana"]
["323 Zintegrowana opieka medyczna"]
["324 Chirurgia minimalnie inwazyjna"]
["325 Medycyna regeneracyjna i inżynieria tkankowa"]
["326 Medycyna translacyjna"]
["331 Teleopieka i telemedycyna"]
["332 Nowoczesne technologie materiałowe i materiały w medycynie i rehabilitacji"]
["333 Informatyczne narzędzia medyczne do gromadzenia i analizy danych medycznych w celach diagnostycznych, terapeutycznych i rehabilitacyjnych"]
["334 Innowacyjne systemy, układy, sensory i detektory elektroniczne i fotoniczne do zastosowań medycznych"]
["335 Biosensory"]
["336 Algorytmy sztucznej inteligencji do zastosowania medycznego"]
["337 Robotyka medyczna"]
["338 Rzeczywistość wirtualna i technologie symulacyjne w medycynie"]
[]
["IV. CYFROWE SPOŁECZEŃSTWO"]
["411 Gromadzenie i przechowywanie danych, dygitalizaja zasobów, chmury"]
["412 Aplikacje i analizy potencjału rynku"]
["413 Projektowanie, zarządzanie, optymalizacja i sterowanie procesami produkcyjnymi"]
["414 Technologie i systemy służące świadczeniu usług dla biznesu"]
["415 Technologie i inteligentne systemy telekomunikacyjne i teleinformatyczne, w tym internet rzeczy"]
["416 Systemy służące sprzedaży oraz obsłudze klienta, platformy e-zakupowe, telemarketing"]
["417 Systemy i usługi płatnicze i finansowe (e-commerce)"]
["421 Systemy wykorzystywane w transporcie, w tym systemy sterowania ruchem"]
["422 Inteligentne bezzałogowe statki latające"]
["423 Systemy i urządzenia sterowane numerycznie"]
["431 Bezpieczeństwo i systemy ochrony cyberprzestrzeni"]
["432 Cyberbezpieczeństwo systemów energetycznych"]
["433 Systemy przewidywania i zapobiegania awariom"]
["434 Przestrzenne systemy nawigacje i monitorowania, w tym rozwiązania stosowane w obiektach zamkniętych"]
["435 Zintegrowane systemy zarządzania budynkami"]
["436 Systemy bezinwazyjnego pomiaru i detekcji"]
["437 Projektowanie, w tym projektowanie wnętrz i zabudowy"]
["438 Rzeczywistość wirtualna i technologie symulacyjne"]
["441 Wykorzystanie TIK na rzecz rozwoju edukacji w obszarze umiejętności cyfrowych w celu stworzenia warunków do edukacji zdalnej (na odległość)"]
["442 Innowacyjne produkty i technologie stosowane w upowszechnianiu kultury i dziedzictwa narodowego oraz zabezpieczaniu zbiorów i ich konserwacji"]
["443 Innowacyjne produkty i technologie stosowane w sporcie, rozrywce, reklamie i multimediach"]
["444 Rozwój oprogramowania i technologii związanych ze sztuczną inteligencją i uczeniem maszynowym"]
[]
["V. TECHNOLOGIE MATERIAŁOWE, PROCESY PRODUKCYJNE I LOGISTYCZNE"]
["511 Materiały o podwyższonych parametrach konstrukcyjnych i izolacyjnych, trwałości oraz charakteryzujące się wysoką odpornością na zużycie i czynniki degradujące"]
["512 Niskoodpadowe technologie i linie produkcyjne wykorzystywane w procesach produkcyjnych"]
["513 Innowacyjne maszyny i urządzenia zmniejszające energochłonność i pracochłonność  produkcji oraz zwiększające bezpieczeństwo pracy"]
["514 Technologie i linie produkcyjne do wytwarzania materiałów i wyrobów z zastosowaniem surowców towarzyszących, produktów ubocznych i odpadów"]
["515 Nowoczesne technologie i materiały dla sektora lotniczego"]
["516 Inżynieria mechaniczna w zakresie nowoczesnych metod wytwarzania"]
["517 Innowacyjne metody i narzędzia stosowane do oceny jakości wykonanych produktów\n"]
["521 Nowoczesne technologie budowy dróg i mostów"]
["522 Innowacyjne konstrukcje nośne z zastosowaniem nowoczesnych materiałów konstrukcyjnych, w tym kompozytów"]
["523 Technologie i systemy sprzyjające racjonalnemu wykorzystaniu ciepła i wody w procesach produkcyjnych"]
["524 Ponowne wykorzystanie materiałów oraz elementów budowlanych (recykling w budoownictwie)"]
["531 Innowacyjne pokrycia dachowe oraz zawansowane technologicznie okna i drzwi\n"]
["532 Innowacyjne systemy, układy, sensory i detektory elektroniczne i fotoniczne do  zastosowań w procesach produkcyjnych i logistycznych, energetyce i budownictwie"]
["533 Innowacyjne technologie VR do zastosowań w procesach produkcyjnych i budownictwie"]
["541 Automatyka przemysłowa i usługowa"]
["542 Inteligentne opakowania umożliwiające monitoring jakości i zawartości otoczenia\n\n\n"]
["543 Inteligentne magazyny z wysoce zautomatyzowanymi procesami logistycznymi"]
["544 Nowoczesne opakowania, w tym biodegradowalne i wielokrotnego użytku"]
["545 Zarządzanie procesami technologicznymi i logistycznymi, w tym sterowanie łańcuchem dostaw"]
["546 Systemy i rozwiązania stosowane w usługach spedytorskich i dyspozytorskich"]
[]
[]
["ŻYWNOŚĆ WYSOKIEJ JAKOŚCI "]
["ZIELONA GOSPODARKA"]
["ZDROWE SPOŁECZEŃSTWO"]
["CYFROWE SPOŁECZEŃSTWO"]
["TECHNOLOGIE MATERIAŁOWE,\nPROCESY PRODUKCYJNE I LOGISTYCZNE"]

{"sheet":"Słownik","index":20,"n_rows":32,"n_cols":1,"rows_kept":32,"cut":false,"hidden":true,"merged":[]}
["uzyskałem dofinansowanie na jego realizację."]
["nie uzyskałem dofinansowania na jego realizację."]
["została mi przyznana inna pomoc państwa (w tym pomoc de minimis). "]
["nie została  mi przyznana inna pomoc państwa (w tym pomoc de minimis). "]
[]
["TAK"]
["NIE "]
[]
["NIE - Oświadczam, iż nie mogę odzyskać w żaden sposób poniesionego kosztu podatku VAT.\nJednocześnie zobowiązuje się do zwrotu zrefundowanej w ramach projektu części poniesionego VAT, jeżeli zaistnieją przesłanki umożliwiające odzyskanie tego podatku.\nZobowiązuję się także do niezwłocznego poinformowania LAWP o jakichkolwiek zmianach w zakresie kwalifikowalności podatku VAT, jak również zobowiązuję się do udostepnienia dokumentacji finansowo-księgowej oraz udzielenia uprawnionym organom kontrolnym informacji umożliwiających weryfikację kwalifikowalności podatku VAT."]
["TAK"]
[]
["NIE"]
["TAK"]
[]
["I półrocze 2023 r."]
["II półrocze 2023 r."]
["I półrocze 2024 r."]
["II półrocze 2024 r."]
["I półrocze 2025 r."]
["II półrocze 2025 r."]
["I półrocze 2026 r."]
["II półrocze 2026 r."]
["I półrocze 2027 r."]
["II półrocze 2027 r."]
[]
[]
["produkcja wyrobów lub usługi"]
["dystrybucja i logistyka"]
["marketing i sprzedaż"]
["systemy informacyjno-komunikacyjne"]
["administracja i zarządzanie"]
["rozwój produktów i procesów biznesowych"]

{"sheet":"Arkusz1","index":21,"n_rows":0,"n_cols":0,"rows_kept":0,"cut":false,"hidden":true,"merged":[]}